{"text_format":"1","workbook":"xlsx","n_sheets":5,"sheets":["Notes","Region (Geography)","Trusts","Categories","BS"],"not_rendered":{"charts":0,"images":0,"macros":1,"external_links":1,"defined_names":8,"comments":0,"pivot_tables":0},"unopened":[],"bounds":{"document_bytes":16777216,"sheet_cells":100000,"rows_first":2000,"rows_last":500,"rows_between":2000,"halvings":0,"cell_chars":16384,"cell_head_chars":4096},"cells_cut":0,"cells_raw":0,"read":"whole","date_system":"1900"}

{"sheet":"Notes","index":0,"n_rows":2,"n_cols":7,"rows_kept":2,"cut":false,"hidden":false,"merged":[[1,1,1,4]]}
[]
[null,"Mental Health Friends and Family Test (FFT) data - July 2015",null,null,null,null,"  Show data for:"]

{"sheet":"Region (Geography)","index":1,"n_rows":27,"n_cols":12,"rows_kept":27,"cut":false,"hidden":false,"merged":[[8,6,8,11],[10,0,10,1],[11,0,11,1],[12,0,12,1],[8,0,9,0],[8,1,9,1],[8,2,9,2],[8,3,9,3],[8,4,9,4],[8,5,9,5]]}
[]
[]
[null,null,"Show data for:              ",null,null,null,null,null,null,"(Collection mode data is shown with Trusts data)          "]
[]
[]
[null,"       Sort data by:           "]
[]
[]
["Region (Geo) Code","Region (Geography)","Total Responses","Total Eligible","Percentage Recommended","Percentage Not  Recommended","Breakdown of Responses"]
[null,null,null,null,null,null,"Extremely Likely","Likely","Neither","Unlikely","Extremely Unlikely","Don't Know"]
["England (including Independent Sector Providers)",null,17996,666803,0.87347188264058684,4.8344076461435875E-2,10603,5116,811,413,457,596]
["England (excluding Independent Sector Providers)",null,17217,657312,0.87198698960329901,4.8730905500377536E-2,10058,4955,790,394,445,575]
["Selection (excluding suppressed data)",null,{"$f":"SUBTOTAL(9,C14:C39)","v":17996},{"$f":"SUBTOTAL(9,D14:D39)","v":666803},{"$f":"IFERROR((G13+H13)/SUM(G13:L13), \"-\")","v":0.87347188264058684},{"$f":"IFERROR((J13+K13)/SUM(G13:L13), \"-\")","v":4.8344076461435875E-2},{"$f":"SUBTOTAL(9,G14:G39)","v":10603},{"$f":"SUBTOTAL(9,H14:H39)","v":5116},811,413,457,596]
["Q72","NHS England Yorkshire & Humber",1235,78040,0.89230769230769236,3.8866396761133605E-2,811,291,34,20,28,51]
["Q73","NHS England Lancashire & Greater Manchester",1606,45026,0.86176836861768369,4.9813200498132003E-2,983,401,68,43,37,74]
["Q74","NHS England Cumbria & North East",2000,82935,0.89100000000000001,3.3500000000000002E-2,997,785,91,34,33,60]
["Q75","NHS England Cheshire & Merseyside",900,30123,0.88666666666666671,0.04,543,255,33,15,21,33]
["Q76","NHS England North Midlands",709,41709,0.91537376586741892,4.0902679830747531E-2,453,196,22,12,17,9]
["Q77","NHS England West Midlands",1011,42880,0.86449060336300687,4.0553907022749754E-2,537,337,40,15,26,56]
["Q78","NHS England Central Midlands",1716,54949,0.89685314685314688,3.9044289044289048E-2,1147,392,65,25,42,45]
["Q79","NHS England East",677,50489,0.85081240768094535,5.7607090103397339E-2,380,196,39,22,17,23]
["Q80","NHS England South West",437,11896,0.90617848970251713,3.8901601830663615E-2,305,91,12,7,10,12]
["Q81","NHS England South East",657,40346,0.81126331811263319,8.5235920852359204E-2,332,201,46,28,28,22]
["Q82","NHS England South Central",1629,32365,0.90178023327194601,3.6218538980969918E-2,1007,462,57,21,38,44]
["Q70","NHS England Wessex",1361,30680,0.92285084496693603,2.9390154298310066E-2,920,336,43,20,20,22]
["Q71","NHS England London",3279,115874,0.80969807868252519,7.9292467215614518E-2,1643,1012,240,132,128,124]
["IS1","Independent Sector Provider",779,9491,0.90629011553273431,3.9794608472400517E-2,545,161,21,19,12,21]

{"sheet":"Trusts","index":2,"n_rows":89,"n_cols":20,"rows_kept":89,"cut":false,"hidden":false,"merged":[[8,6,9,6],[8,7,8,12],[8,13,8,19],[10,0,10,2],[11,0,11,2],[8,4,9,4],[8,5,9,5],[12,0,12,2],[8,0,9,0],[8,1,9,1],[8,2,9,2],[8,3,9,3]]}
[]
[]
[null,null,null,"Show data for:              ",null,null,null,null,null,null,"(Collection mode data is shown with Trusts data)          "]
[]
[]
[null,"       Sort data by:           "]
[]
[]
["Region (Geo) Code","Trust Code","Trust Name","Total Responses","Total Eligible","Percentage Recommended","Percentage Not  Recommended","Breakdown of Responses",null,null,null,null,null,"Mode of Collection"]
[null,null,null,null,null,null,null,"Extremely Likely","Likely","Neither","Unlikely","Extremely Unlikely","Don't Know","SMS/Text / Smartphone App","Electronic tablet/kiosk at point of discharge","Paper / postcard at point of discharge","Paper survey sent to the patients home","Telephone survey once patient is home","Online survey once patient is home","Other"]
["England (including Independent Sector Providers)",null,null,17996,666803,0.87347188264058684,4.8344076461435875E-2,10603,5116,811,413,457,596,33,3769,9611,1773,202,2133,475]
["England (excluding Independent Sector Providers)",null,null,17217,657312,0.87198698960329901,4.8730905500377536E-2,10058,4955,790,394,445,575,33,3678,9296,1766,200,2097,147]
["Selection (excluding suppressed data)",null,null,{"$f":"SUBTOTAL(9,D14:D300)","v":17996},{"$f":"SUBTOTAL(9,E14:E300)","v":666803},{"$f":"IFERROR((H13+I13)/SUM(H13:M13), \"-\")","v":0.87347188264058684},{"$f":"IFERROR((K13+L13)/SUM(H13:M13), \"-\")","v":4.8344076461435875E-2},{"$f":"SUBTOTAL(9,H14:H300)","v":10603},5116,811,413,457,596,33,3769,9611,1773,202,2133,475]
["Q70","RDY","DORSET HEALTHCARE UNIVERSITY NHS FOUNDATION TRUST",608,9559,0.94736842105263153,1.1513157894736841E-2,457,119,19,4,3,6,0,21,262,0,0,325,0]
["Q70","R1F","ISLE OF WIGHT NHS TRUST",10,3374,0.8,0.2,7,1,0,0,2,0,0,0,10,0,0,0,0]
["Q70","R1C","SOLENT NHS TRUST",263,4899,0.88212927756653992,4.5627376425855515E-2,159,73,12,3,9,7,0,0,263,0,0,0,0]
["Q70","RW1","SOUTHERN HEALTH NHS FOUNDATION TRUST",480,12848,0.91666666666666663,3.9583333333333331E-2,297,143,12,13,6,9,0,0,277,0,0,203,0]
["Q71","RRP","BARNET, ENFIELD AND HARINGEY MENTAL HEALTH NHS TRUST",924,8978,0.85389610389610393,3.67965367965368E-2,419,370,63,21,13,38,0,29,0,0,0,895,0]
["Q71","TAF","CAMDEN AND ISLINGTON NHS FOUNDATION TRUST",189,2479,0.79365079365079361,0.1111111111111111,87,63,5,9,12,13,0,120,0,64,0,5,0]
["Q71","RV3","CENTRAL AND NORTH WEST LONDON NHS FOUNDATION TRUST",199,18555,0.88442211055276387,2.0100502512562814E-2,122,54,16,2,2,3,0,0,194,0,0,5,0]
["Q71","RWK","EAST LONDON NHS FOUNDATION TRUST",167,10673,0.71856287425149701,7.1856287425149698E-2,100,20,27,4,8,8,0,167,0,0,0,0,0]
["Q71","RAT","NORTH EAST LONDON NHS FOUNDATION TRUST",249,15087,0.81526104417670686,6.4257028112449793E-2,109,94,19,10,6,11,0,5,70,0,174,0,0]
["Q71","RPG","OXLEAS NHS FOUNDATION TRUST",426,11044,0.81690140845070425,9.154929577464789E-2,212,136,28,23,16,11,0,159,267,0,0,0,0]
["Q71","RAL","ROYAL FREE LONDON NHS FOUNDATION TRUST",50,289,0.92,0.04,34,12,1,2,0,1,0,0,50,0,0,0,0]
["Q71","RV5","SOUTH LONDON AND MAUDSLEY NHS FOUNDATION TRUST",777,32165,0.78120978120978124,0.12097812097812098,393,214,56,45,49,20,0,542,188,0,0,47,0]
["Q71","RQY","SOUTH WEST LONDON AND ST GEORGE'S MENTAL HEALTH NHS TRUST",52,8018,0.82692307692307687,9.6153846153846159E-2,32,11,4,2,3,0,0,52,0,0,0,0,0]
["Q71","RNK","TAVISTOCK AND PORTMAN NHS FOUNDATION TRUST",108,1093,0.89814814814814814,3.7037037037037035E-2,84,13,0,4,0,7,0,0,108,0,0,0,0]
["Q71","RRV","UNIVERSITY COLLEGE LONDON HOSPITALS NHS FOUNDATION TRUST",5,10,1,0,5,0,0,0,0,0,0,5,0,0,0,0,0]
["Q71","RKL","WEST LONDON MENTAL HEALTH NHS TRUST",133,7483,0.53383458646616544,0.21804511278195488,46,25,21,10,19,12,0,0,0,133,0,0,0]
["Q72","TAD","BRADFORD DISTRICT CARE NHS FOUNDATION TRUST",108,8816,0.84259259259259256,5.5555555555555552E-2,68,23,9,5,1,2,0,92,15,0,0,1,0]
["Q72","RV9","HUMBER NHS FOUNDATION TRUST",162,4638,0.96296296296296291,1.2345679012345678E-2,99,57,2,1,1,2,0,0,160,0,0,2,0]
["Q72","RGD","LEEDS AND YORK PARTNERSHIP NHS FOUNDATION TRUST",44,12039,0.93181818181818177,0,31,10,2,0,0,1,0,0,44,0,0,0,0]
["Q72","RY6","LEEDS COMMUNITY HEALTHCARE NHS TRUST",141,530,0.87943262411347523,8.5106382978723402E-2,101,23,4,3,9,1,0,0,141,0,0,0,0]
["Q72","RXE","ROTHERHAM DONCASTER AND SOUTH HUMBER NHS FOUNDATION TRUST",242,20646,0.83471074380165289,4.9586776859504134E-2,156,46,3,4,8,25,0,0,242,0,0,0,0]
["Q72","RCU","SHEFFIELD CHILDREN'S NHS FOUNDATION TRUST",25,45,0.92,0,15,8,1,0,0,1,0,0,25,0,0,0,0]
["Q72","TAH","SHEFFIELD HEALTH & SOCIAL CARE NHS FOUNDATION TRUST",223,16145,0.95067264573991028,1.3452914798206279E-2,160,52,6,1,2,2,0,0,223,0,0,0,0]
["Q72","RXG","SOUTH WEST YORKSHIRE PARTNERSHIP NHS FOUNDATION TRUST",290,15181,0.87241379310344824,4.4827586206896551E-2,181,72,7,6,7,17,0,101,189,0,0,0,0]
["Q73","RXL","BLACKPOOL TEACHING HOSPITALS NHS FOUNDATION TRUST",107,2176,0.94392523364485981,9.3457943925233638E-3,74,27,4,1,0,1,0,0,107,0,0,0,0]
["Q73","RXV","GREATER MANCHESTER WEST MENTAL HEALTH NHS FOUNDATION TRUST",372,14260,0.81182795698924726,8.0645161290322578E-2,199,103,19,17,13,21,24,67,136,145,0,0,0]
["Q73","RW5","LANCASHIRE CARE NHS FOUNDATION TRUST",378,21102,0.81481481481481477,6.8783068783068779E-2,189,119,23,15,11,21,0,0,378,0,0,0,0]
["Q73","TAE","MANCHESTER MENTAL HEALTH AND SOCIAL CARE TRUST",353,7092,0.88668555240793201,1.69971671388102E-2,230,83,14,4,2,20,0,0,353,0,0,0,0]
["Q73","RT2","PENNINE CARE NHS FOUNDATION TRUST",396,396,0.90909090909090906,4.2929292929292928E-2,291,69,8,6,11,11,9,0,369,0,0,18,0]
["Q74","RNN","CUMBRIA PARTNERSHIP NHS FOUNDATION TRUST",285,4231,0.9263157894736842,2.1052631578947368E-2,195,69,13,4,2,2,0,42,243,0,0,0,0]
["Q74","RR7","GATESHEAD HEALTH NHS FOUNDATION TRUST",41,307,1,0,41,0,0,0,0,0,0,0,41,0,0,0,0]
["Q74","RX4","NORTHUMBERLAND, TYNE AND WEAR NHS FOUNDATION TRUST",165,21260,0.75757575757575757,4.2424242424242427E-2,69,56,11,4,3,22,0,0,0,164,0,1,0]
["Q74","RTF","NORTHUMBRIA HEALTHCARE NHS FOUNDATION TRUST",9,433,1,0,6,3,0,0,0,0,0,0,9,0,0,0,0]
["Q74","RE9","SOUTH TYNESIDE NHS FOUNDATION TRUST",119,498,0.99159663865546221,0,99,19,1,0,0,0,0,0,119,0,0,0,0]
["Q74","RX3","TEES, ESK AND WEAR VALLEYS NHS FOUNDATION TRUST",1381,56206,0.88703837798696594,3.9102099927588702E-2,587,638,66,26,28,36,0,397,984,0,0,0,0]
["Q75","RTV","5 BOROUGHS PARTNERSHIP NHS FOUNDATION TRUST",405,405,0.87654320987654322,5.9259259259259262E-2,251,104,9,10,14,17,0,0,342,0,0,63,0]
["Q75","RBS","ALDER HEY CHILDREN'S NHS FOUNDATION TRUST",12,897,0.83333333333333337,0,6,4,1,0,0,1,0,0,12,0,0,0,0]
["Q75","RXA","CHESHIRE AND WIRRAL PARTNERSHIP NHS FOUNDATION TRUST",223,11574,0.92376681614349776,3.1390134529147982E-2,163,43,4,1,6,6,0,0,0,223,0,0,0]
["Q75","RW4","MERSEY CARE NHS TRUST",260,17247,0.87307692307692308,1.9230769230769232E-2,123,104,19,4,1,9,0,260,0,0,0,0,0]
["Q76","RXM","DERBYSHIRE HEALTHCARE NHS FOUNDATION TRUST",32,10420,0.8125,6.25E-2,16,10,4,1,1,0,0,0,0,0,0,32,0]
["Q76","RLY","NORTH STAFFORDSHIRE COMBINED HEALTHCARE NHS TRUST",54,559,0.88888888888888884,3.7037037037037035E-2,36,12,3,0,2,1,0,0,54,0,0,0,0]
["Q76","RHA","NOTTINGHAMSHIRE HEALTHCARE NHS FOUNDATION TRUST",328,18159,0.93597560975609762,3.048780487804878E-2,227,80,8,4,6,3,0,0,328,0,0,0,0]
["Q76","R1D","SHROPSHIRE COMMUNITY HEALTH NHS TRUST",16,928,0.9375,6.25E-2,9,6,0,1,0,0,0,0,16,0,0,0,0]
["Q76","RRE","SOUTH STAFFORDSHIRE AND SHROPSHIRE HEALTHCARE NHS FOUNDATION TRUST",279,11643,0.90681003584229392,5.0179211469534052E-2,165,88,7,6,8,5,0,0,186,63,15,15,0]
["Q77","RXT","BIRMINGHAM AND SOLIHULL MENTAL HEALTH NHS FOUNDATION TRUST",789,18523,0.89226869455006341,4.5627376425855515E-2,442,262,34,12,24,15,0,522,267,0,0,0,0]
["Q77","RQ3","BIRMINGHAM CHILDREN'S HOSPITAL NHS FOUNDATION TRUST",9,12,1,0,6,3,0,0,0,0,0,0,9,0,0,0,0]
["Q77","TAJ","BLACK COUNTRY PARTNERSHIP NHS FOUNDATION TRUST",10,7718,0.9,0,7,2,1,0,0,0,0,0,0,10,0,0,0]
["Q77","RYG","COVENTRY AND WARWICKSHIRE PARTNERSHIP NHS TRUST",49,8121,0.8571428571428571,6.1224489795918366E-2,30,12,1,1,2,3,0,0,49,0,0,0,0]
["Q77","RYK","DUDLEY AND WALSALL MENTAL HEALTH PARTNERSHIP NHS TRUST",147,6148,0.70748299319727892,6.8027210884353739E-3,50,54,4,1,0,38,0,0,0,0,0,0,147]
["Q77","R1A","WORCESTERSHIRE HEALTH AND CARE NHS TRUST",7,2358,0.8571428571428571,0.14285714285714285,2,4,0,1,0,0,0,0,7,0,0,0,0]
["Q78","RY4","HERTFORDSHIRE COMMUNITY NHS TRUST",29,357,0.86206896551724133,0.13793103448275862,15,10,0,1,3,0,0,0,0,29,0,0,0]
["Q78","RWR","HERTFORDSHIRE PARTNERSHIP UNIVERSITY NHS FOUNDATION TRUST",427,32825,0.82903981264637006,0.10772833723653395,235,119,14,16,30,13,0,0,416,0,11,0,0]
["Q78","RT5","LEICESTERSHIRE PARTNERSHIP NHS TRUST",146,10677,0.92465753424657537,2.0547945205479451E-2,95,40,8,1,2,0,0,0,144,0,0,2,0]
["Q78","RP7","LINCOLNSHIRE PARTNERSHIP NHS FOUNDATION TRUST",649,5148,0.95223420647149459,6.1633281972265025E-3,530,88,16,3,1,11,0,47,602,0,0,0,0]
["Q78","RP1","NORTHAMPTONSHIRE HEALTHCARE NHS FOUNDATION TRUST",465,5942,0.87526881720430105,2.1505376344086023E-2,272,135,27,4,6,21,0,73,388,0,0,4,0]
["Q79","RT1","CAMBRIDGESHIRE AND PETERBOROUGH NHS FOUNDATION TRUST",469,8379,0.86993603411513865,2.7718550106609809E-2,274,134,27,7,6,21,0,330,130,0,0,9,0]
["Q79","RMY","NORFOLK AND SUFFOLK NHS FOUNDATION TRUST",27,15841,0.92592592592592593,3.7037037037037035E-2,20,5,1,1,0,0,0,0,25,0,0,2,0]
["Q79","RRD","NORTH ESSEX PARTNERSHIP UNIVERSITY NHS FOUNDATION TRUST",85,15778,0.76470588235294112,0.11764705882352941,29,36,8,4,6,2,0,0,0,0,0,85,0]
["Q79","RWN","SOUTH ESSEX PARTNERSHIP UNIVERSITY NHS FOUNDATION TRUST",96,10491,0.8125,0.15625,57,21,3,10,5,0,0,0,0,96,0,0,0]
["Q80","RJ8","CORNWALL PARTNERSHIP NHS FOUNDATION TRUST",197,4357,0.92385786802030456,5.0761421319796954E-2,130,52,3,4,6,2,0,16,76,60,0,45,0]
["Q80","RWV","DEVON PARTNERSHIP NHS TRUST",97,7396,0.83505154639175261,7.2164948453608241E-2,71,10,1,3,4,8,0,8,82,0,0,7,0]
["Q80","RH5","SOMERSET PARTNERSHIP NHS FOUNDATION TRUST",143,143,0.93006993006993011,0,104,29,8,0,0,2,0,0,143,0,0,0,0]
["Q81","RXY","KENT AND MEDWAY NHS AND SOCIAL CARE PARTNERSHIP TRUST",167,13923,0.79640718562874246,0.12574850299401197,99,34,5,8,13,8,0,0,167,0,0,0,0]
["Q81","RXX","SURREY AND BORDERS PARTNERSHIP NHS FOUNDATION TRUST",280,9523,0.85357142857142854,0.05,138,101,20,7,7,7,0,224,29,0,0,27,0]
["Q81","RX2","SUSSEX PARTNERSHIP NHS FOUNDATION TRUST",210,16900,0.76666666666666672,0.1,95,66,21,13,8,7,0,175,0,0,0,35,0]
["Q82","RTQ","2GETHER NHS FOUNDATION TRUST",117,9206,0.93162393162393164,2.564102564102564E-2,75,34,4,2,1,1,0,88,28,0,0,1,0]
["Q82","RVN","AVON AND WILTSHIRE MENTAL HEALTH PARTNERSHIP NHS TRUST",819,5524,0.88766788766788762,4.5177045177045176E-2,497,230,27,10,27,28,0,42,68,556,0,153,0]
["Q82","RWX","BERKSHIRE HEALTHCARE NHS FOUNDATION TRUST",201,6635,0.95024875621890548,4.9751243781094526E-3,142,49,8,0,1,1,0,5,196,0,0,0,0]
["Q82","RNU","OXFORD HEALTH NHS FOUNDATION TRUST",492,11000,0.89837398373983735,3.6585365853658534E-2,293,149,18,9,9,14,0,89,65,223,0,115,0]
["IS1","NVR","ALPHA HOSPITALS",8,245,0.375,0.5,1,2,1,0,4,0,0,0,8,0,0,0,0]
["IS1","NWX","BRIGHTON & HOVE INTEGRATED CARE SERVICE",74,1341,0.98648648648648651,1.3513513513513514E-2,69,4,0,1,0,0,0,0,67,0,0,7,0]
["IS1","NNF","CITY HEALTH CARE PARTNERSHIP CIC",241,2496,0.97925311203319498,0,192,44,1,0,0,4,0,3,236,0,2,0,0]
["IS1","NMJ","CYGNET HEALTH CARE LIMITED",58,420,0.43103448275862066,0.32758620689655171,9,16,8,12,7,6,0,58,0,0,0,0,0]
["IS1","NQL","NAVIGO",328,2660,0.93292682926829273,1.2195121951219513E-2,234,72,7,3,1,11,0,0,0,0,0,0,328]
["IS1","NR5","PLYMOUTH COMMUNITY HEALTHCARE (CIC)",63,2322,0.88888888888888884,4.7619047619047616E-2,35,21,4,3,0,0,0,30,4,0,0,29,0]
["IS1","NDK","YARBOROUGH CLEE CARE LIMITED",7,7,1,0,5,2,0,0,0,0,0,0,0,7,0,0,0]

{"sheet":"Categories","index":3,"n_rows":304,"n_cols":13,"rows_kept":304,"cut":false,"hidden":false,"merged":[[8,6,9,6],[8,7,8,12],[10,0,10,3],[11,0,11,3],[12,0,12,3],[8,0,9,0],[8,1,9,1],[8,2,9,2],[8,3,9,3],[8,4,9,4],[8,5,9,5]]}
[]
[]
[null,null,null,"Show data for:                                        ",null,null,null,null,null,"(Collection mode data is shown with Trusts data)          "]
[]
[]
[null,"       Sort data by:           "]
[]
[]
["Region (Geo) Code","Trust Code","Trust Name","Service Category Provided","Total Responses","Percentage Recommended","Percentage Not  Recommended","Breakdown of Responses"]
[null,null,null,null,null,null,null,"Extremely Likely","Likely","Neither","Unlikely","Extremely Unlikely","Don't Know"]
["England (including Independent Sector Providers)",null,null,null,17996,0.87347188264058684,4.8344076461435875E-2,10603,5116,811,413,457,596]
["England (excluding Independent Sector Providers)",null,null,null,17217,0.87198698960329901,4.8730905500377536E-2,10058,4955,790,394,445,575]
["Selection (excluding suppressed data)",null,null,null,{"$f":"SUBTOTAL(9,E14:E1000)","v":17996},{"$f":"IFERROR((H13+I13)/SUM(H13:M13), \"-\")","v":0.87363080825550554},{"$f":"IFERROR((K13+L13)/SUM(H13:M13), \"-\")","v":4.7849648333909832E-2},{"$f":"SUBTOTAL(9,H14:H1000)","v":10184},{"$f":"SUBTOTAL(9,I14:I1000)","v":4970},785,397,433,577]
["Q70","RDY","DORSET HEALTHCARE UNIVERSITY NHS FOUNDATION TRUST","Acute Services",53,0.86792452830188682,0,33,13,6,0,0,1]
["Q70","RDY","DORSET HEALTHCARE UNIVERSITY NHS FOUNDATION TRUST","Child & Adolescent Mental Health Services",52,0.90384615384615385,1.9230769230769232E-2,39,8,2,0,1,2]
["Q70","RDY","DORSET HEALTHCARE UNIVERSITY NHS FOUNDATION TRUST","Mental Health Other",26,1,0,19,7,0,0,0,0]
["Q70","RDY","DORSET HEALTHCARE UNIVERSITY NHS FOUNDATION TRUST","Primary Care",273,0.9853479853479854,0,226,43,2,0,0,2]
["Q70","RDY","DORSET HEALTHCARE UNIVERSITY NHS FOUNDATION TRUST","Secondary Care Community Services",162,0.90123456790123457,3.7037037037037035E-2,103,43,9,4,2,1]
["Q70","RDY","DORSET HEALTHCARE UNIVERSITY NHS FOUNDATION TRUST","Specialist Services",42,1,0,37,5,0,0,0,0]
["Q70","R1F","ISLE OF WIGHT NHS TRUST","Acute Services",8,1,0,"*","*","*","*","*","*"]
["Q70","R1F","ISLE OF WIGHT NHS TRUST","Secondary Care Community Services",2,"*","*","*","*","*","*","*","*"]
["Q70","R1C","SOLENT NHS TRUST","Acute Services",45,0.8666666666666667,6.6666666666666666E-2,31,8,2,0,3,1]
["Q70","R1C","SOLENT NHS TRUST","Child & Adolescent Mental Health Services",66,1,0,49,17,0,0,0,0]
["Q70","R1C","SOLENT NHS TRUST","Mental Health Other",60,0.83333333333333337,0.05,29,21,4,1,2,3]
["Q70","R1C","SOLENT NHS TRUST","Secondary Care Community Services",92,0.83695652173913049,6.5217391304347824E-2,50,27,6,2,4,3]
["Q70","RW1","SOUTHERN HEALTH NHS FOUNDATION TRUST","Acute Services",33,0.78787878787878785,9.0909090909090912E-2,14,12,4,3,0,0]
["Q70","RW1","SOUTHERN HEALTH NHS FOUNDATION TRUST","Child & Adolescent Mental Health Services",3,"*","*","*","*","*","*","*","*"]
["Q70","RW1","SOUTHERN HEALTH NHS FOUNDATION TRUST","Mental Health Other",22,1,0,21,1,0,0,0,0]
["Q70","RW1","SOUTHERN HEALTH NHS FOUNDATION TRUST","Primary Care",203,0.95073891625615758,1.4778325123152709E-2,142,51,0,0,3,7]
["Q70","RW1","SOUTHERN HEALTH NHS FOUNDATION TRUST","Secondary Care Community Services",211,0.90521327014218012,5.2132701421800945E-2,116,75,8,9,2,1]
["Q70","RW1","SOUTHERN HEALTH NHS FOUNDATION TRUST","Secure & Forensic Services",8,0.625,0.25,"*","*","*","*","*","*"]
["Q71","RRP","BARNET, ENFIELD AND HARINGEY MENTAL HEALTH NHS TRUST","Acute Services",193,0.83419689119170981,4.6632124352331605E-2,74,87,9,4,5,14]
["Q71","RRP","BARNET, ENFIELD AND HARINGEY MENTAL HEALTH NHS TRUST","Child & Adolescent Mental Health Services",10,1,0,"*","*","*","*","*","*"]
["Q71","RRP","BARNET, ENFIELD AND HARINGEY MENTAL HEALTH NHS TRUST","Secondary Care Community Services",627,0.87240829346092508,3.5087719298245612E-2,316,231,36,15,7,22]
["Q71","RRP","BARNET, ENFIELD AND HARINGEY MENTAL HEALTH NHS TRUST","Secure & Forensic Services",93,0.75268817204301075,3.2258064516129031E-2,21,49,18,2,1,2]
["Q71","RRP","BARNET, ENFIELD AND HARINGEY MENTAL HEALTH NHS TRUST","Specialist Services",1,"*","*","*","*","*","*","*","*"]
["Q71","TAF","CAMDEN AND ISLINGTON NHS FOUNDATION TRUST","Acute Services",67,0.73134328358208955,0.17910447761194029,23,26,1,5,7,5]
["Q71","TAF","CAMDEN AND ISLINGTON NHS FOUNDATION TRUST","Mental Health Other",81,0.87654320987654322,2.4691358024691357E-2,50,21,2,1,1,6]
["Q71","TAF","CAMDEN AND ISLINGTON NHS FOUNDATION TRUST","Secondary Care Community Services",38,0.76315789473684215,0.13157894736842105,"*","*","*","*","*","*"]
["Q71","TAF","CAMDEN AND ISLINGTON NHS FOUNDATION TRUST","Specialist Services",3,"*","*","*","*","*","*","*","*"]
["Q71","RV3","CENTRAL AND NORTH WEST LONDON NHS FOUNDATION TRUST","Acute Services",18,0.72222222222222221,0.1111111111111111,8,5,3,1,1,0]
["Q71","RV3","CENTRAL AND NORTH WEST LONDON NHS FOUNDATION TRUST","Child & Adolescent Mental Health Services",25,0.92,0,11,12,2,0,0,0]
["Q71","RV3","CENTRAL AND NORTH WEST LONDON NHS FOUNDATION TRUST","Primary Care",31,0.967741935483871,0,25,5,1,0,0,0]
["Q71","RV3","CENTRAL AND NORTH WEST LONDON NHS FOUNDATION TRUST","Secondary Care Community Services",125,0.88,1.6E-2,78,32,10,1,1,3]
["Q71","RWK","EAST LONDON NHS FOUNDATION TRUST","Acute Services",167,0.71856287425149701,7.1856287425149698E-2,100,20,27,4,8,8]
["Q71","RAT","NORTH EAST LONDON NHS FOUNDATION TRUST","Acute Services",71,0.77464788732394363,8.4507042253521125E-2,30,25,8,5,1,2]
["Q71","RAT","NORTH EAST LONDON NHS FOUNDATION TRUST","Child & Adolescent Mental Health Services",31,0.83870967741935487,3.2258064516129031E-2,18,8,3,0,1,1]
["Q71","RAT","NORTH EAST LONDON NHS FOUNDATION TRUST","Mental Health Other",10,0.7,0.1,5,2,0,0,1,2]
["Q71","RAT","NORTH EAST LONDON NHS FOUNDATION TRUST","Secondary Care Community Services",118,0.82203389830508478,6.7796610169491525E-2,46,51,8,5,3,5]
["Q71","RAT","NORTH EAST LONDON NHS FOUNDATION TRUST","Specialist Services",19,0.94736842105263153,0,10,8,0,0,0,1]
["Q71","RPG","OXLEAS NHS FOUNDATION TRUST","Acute Services",97,0.77319587628865982,0.13402061855670103,42,33,9,8,5,0]
["Q71","RPG","OXLEAS NHS FOUNDATION TRUST","Child & Adolescent Mental Health Services",82,0.87804878048780488,7.3170731707317069E-2,41,31,2,4,2,2]
["Q71","RPG","OXLEAS NHS FOUNDATION TRUST","Mental Health Other",31,0.90322580645161288,6.4516129032258063E-2,27,1,0,2,0,1]
["Q71","RPG","OXLEAS NHS FOUNDATION TRUST","Primary Care",41,0.85365853658536583,7.3170731707317069E-2,22,13,2,1,2,1]
["Q71","RPG","OXLEAS NHS FOUNDATION TRUST","Secondary Care Community Services",113,0.80530973451327437,7.9646017699115043E-2,61,30,10,5,4,3]
["Q71","RPG","OXLEAS NHS FOUNDATION TRUST","Secure & Forensic Services",62,0.75806451612903225,9.6774193548387094E-2,19,28,5,3,3,4]
["Q71","RAL","ROYAL FREE LONDON NHS FOUNDATION TRUST","Child & Adolescent Mental Health Services",50,0.92,0.04,34,12,1,2,0,1]
["Q71","RV5","SOUTH LONDON AND MAUDSLEY NHS FOUNDATION TRUST","Acute Services",240,0.72083333333333333,0.11666666666666667,85,88,32,17,11,7]
["Q71","RV5","SOUTH LONDON AND MAUDSLEY NHS FOUNDATION TRUST","Child & Adolescent Mental Health Services",90,0.83333333333333337,7.7777777777777779E-2,58,17,5,1,6,3]
["Q71","RV5","SOUTH LONDON AND MAUDSLEY NHS FOUNDATION TRUST","Mental Health Other",6,0.5,0.33333333333333331,2,1,1,0,2,0]
["Q71","RV5","SOUTH LONDON AND MAUDSLEY NHS FOUNDATION TRUST","Primary Care",29,0.89655172413793105,3.4482758620689655E-2,18,8,1,0,1,1]
["Q71","RV5","SOUTH LONDON AND MAUDSLEY NHS FOUNDATION TRUST","Secondary Care Community Services",221,0.90045248868778283,4.9773755656108594E-2,131,68,6,7,4,5]
["Q71","RV5","SOUTH LONDON AND MAUDSLEY NHS FOUNDATION TRUST","Secure & Forensic Services",59,0.83050847457627119,8.4745762711864403E-2,25,24,4,2,3,1]
["Q71","RV5","SOUTH LONDON AND MAUDSLEY NHS FOUNDATION TRUST","Specialist Services",132,0.62121212121212122,0.30303030303030304,74,8,7,18,22,3]
["Q71","RQY","SOUTH WEST LONDON AND ST GEORGE'S MENTAL HEALTH NHS TRUST","Acute Services",19,0.78947368421052633,5.2631578947368418E-2,12,3,3,0,1,0]
["Q71","RQY","SOUTH WEST LONDON AND ST GEORGE'S MENTAL HEALTH NHS TRUST","Mental Health Other",21,0.90476190476190477,9.5238095238095233E-2,15,4,0,0,2,0]
["Q71","RQY","SOUTH WEST LONDON AND ST GEORGE'S MENTAL HEALTH NHS TRUST","Secondary Care Community Services",12,0.75,0.16666666666666666,5,4,1,2,0,0]
["Q71","RNK","TAVISTOCK AND PORTMAN NHS FOUNDATION TRUST","Mental Health Other",108,0.89814814814814814,3.7037037037037035E-2,84,13,0,4,0,7]
["Q71","RRV","UNIVERSITY COLLEGE LONDON HOSPITALS NHS FOUNDATION TRUST","Specialist Services",5,1,0,5,0,0,0,0,0]
["Q71","RKL","WEST LONDON MENTAL HEALTH NHS TRUST","Primary Care",12,0.91666666666666663,0,7,4,1,0,0,0]
["Q71","RKL","WEST LONDON MENTAL HEALTH NHS TRUST","Secondary Care Community Services",20,0.95,0.05,17,2,0,1,0,0]
["Q71","RKL","WEST LONDON MENTAL HEALTH NHS TRUST","Secure & Forensic Services",101,0.40594059405940597,0.27722772277227725,22,19,20,9,19,12]
["Q72","TAD","BRADFORD DISTRICT CARE NHS FOUNDATION TRUST","Acute Services",85,0.83529411764705885,5.8823529411764705E-2,54,17,9,4,1,0]
["Q72","TAD","BRADFORD DISTRICT CARE NHS FOUNDATION TRUST","Child & Adolescent Mental Health Services",1,"*","*","*","*","*","*","*","*"]
["Q72","TAD","BRADFORD DISTRICT CARE NHS FOUNDATION TRUST","Mental Health Other",1,"*","*","*","*","*","*","*","*"]
["Q72","TAD","BRADFORD DISTRICT CARE NHS FOUNDATION TRUST","Secondary Care Community Services",21,0.90476190476190477,4.7619047619047616E-2,13,6,0,1,0,1]
["Q72","RV9","HUMBER NHS FOUNDATION TRUST","Acute Services",52,0.92307692307692313,3.8461538461538464E-2,24,24,1,1,1,1]
["Q72","RV9","HUMBER NHS FOUNDATION TRUST","Child & Adolescent Mental Health Services",3,"*","*","*","*","*","*","*","*"]
["Q72","RV9","HUMBER NHS FOUNDATION TRUST","Mental Health Other",11,1,0,7,4,0,0,0,0]
["Q72","RV9","HUMBER NHS FOUNDATION TRUST","Primary Care",27,1,0,23,4,0,0,0,0]
["Q72","RV9","HUMBER NHS FOUNDATION TRUST","Secondary Care Community Services",63,0.96825396825396826,0,39,22,1,0,0,1]
["Q72","RV9","HUMBER NHS FOUNDATION TRUST","Specialist Services",6,1,0,"*","*","*","*","*","*"]
["Q72","RGD","LEEDS AND YORK PARTNERSHIP NHS FOUNDATION TRUST","Acute Services",6,0.83333333333333337,0,"*","*","*","*","*","*"]
["Q72","RGD","LEEDS AND YORK PARTNERSHIP NHS FOUNDATION TRUST","Secondary Care Community Services",23,0.95652173913043481,0,19,3,1,0,0,0]
["Q72","RGD","LEEDS AND YORK PARTNERSHIP NHS FOUNDATION TRUST","Secure & Forensic Services",2,"*","*","*","*","*","*","*","*"]
["Q72","RGD","LEEDS AND YORK PARTNERSHIP NHS FOUNDATION TRUST","Specialist Services",13,1,0,7,6,0,0,0,0]
["Q72","RY6","LEEDS COMMUNITY HEALTHCARE NHS TRUST","Primary Care",141,0.87943262411347523,8.5106382978723402E-2,101,23,4,3,9,1]
["Q72","RXE","ROTHERHAM DONCASTER AND SOUTH HUMBER NHS FOUNDATION TRUST","Acute Services",71,0.71830985915492962,4.2253521126760563E-2,36,15,1,3,0,16]
["Q72","RXE","ROTHERHAM DONCASTER AND SOUTH HUMBER NHS FOUNDATION TRUST","Child & Adolescent Mental Health Services",2,"*","*","*","*","*","*","*","*"]
["Q72","RXE","ROTHERHAM DONCASTER AND SOUTH HUMBER NHS FOUNDATION TRUST","Primary Care",38,0.89473684210526316,2.6315789473684209E-2,"*","*","*","*","*","*"]
["Q72","RXE","ROTHERHAM DONCASTER AND SOUTH HUMBER NHS FOUNDATION TRUST","Secondary Care Community Services",90,0.96666666666666667,1.1111111111111112E-2,69,18,0,1,0,2]
["Q72","RXE","ROTHERHAM DONCASTER AND SOUTH HUMBER NHS FOUNDATION TRUST","Specialist Services",41,0.68292682926829273,0.17073170731707318,20,8,2,0,7,4]
["Q72","RCU","SHEFFIELD CHILDREN'S NHS FOUNDATION TRUST","Acute Services",6,0.83333333333333337,0,3,2,1,0,0,0]
["Q72","RCU","SHEFFIELD CHILDREN'S NHS FOUNDATION TRUST","Child & Adolescent Mental Health Services",19,0.94736842105263153,0,12,6,0,0,0,1]
["Q72","TAH","SHEFFIELD HEALTH & SOCIAL CARE NHS FOUNDATION TRUST","Acute Services",21,0.95238095238095233,0,17,3,1,0,0,0]
["Q72","TAH","SHEFFIELD HEALTH & SOCIAL CARE NHS FOUNDATION TRUST","Mental Health Other",6,0.83333333333333337,0,4,1,1,0,0,0]
["Q72","TAH","SHEFFIELD HEALTH & SOCIAL CARE NHS FOUNDATION TRUST","Primary Care",35,0.91428571428571426,0,22,10,2,0,0,1]
["Q72","TAH","SHEFFIELD HEALTH & SOCIAL CARE NHS FOUNDATION TRUST","Secondary Care Community Services",155,0.96129032258064517,1.935483870967742E-2,112,37,2,1,2,1]
["Q72","TAH","SHEFFIELD HEALTH & SOCIAL CARE NHS FOUNDATION TRUST","Specialist Services",6,1,0,5,1,0,0,0,0]
["Q72","RXG","SOUTH WEST YORKSHIRE PARTNERSHIP NHS FOUNDATION TRUST","Acute Services",41,0.82926829268292679,2.4390243902439025E-2,22,12,1,1,0,5]
["Q72","RXG","SOUTH WEST YORKSHIRE PARTNERSHIP NHS FOUNDATION TRUST","Child & Adolescent Mental Health Services",79,0.68354430379746833,0.13924050632911392,36,18,4,5,6,10]
["Q72","RXG","SOUTH WEST YORKSHIRE PARTNERSHIP NHS FOUNDATION TRUST","Mental Health Other",13,1,0,9,4,0,0,0,0]
["Q72","RXG","SOUTH WEST YORKSHIRE PARTNERSHIP NHS FOUNDATION TRUST","Primary Care",23,0.95652173913043481,4.3478260869565216E-2,18,4,0,0,1,0]
["Q72","RXG","SOUTH WEST YORKSHIRE PARTNERSHIP NHS FOUNDATION TRUST","Secondary Care Community Services",111,0.963963963963964,0,77,30,2,0,0,2]
["Q72","RXG","SOUTH WEST YORKSHIRE PARTNERSHIP NHS FOUNDATION TRUST","Specialist Services",23,1,0,19,4,0,0,0,0]
["Q73","RXL","BLACKPOOL TEACHING HOSPITALS NHS FOUNDATION TRUST","Child & Adolescent Mental Health Services",10,0.9,0,6,3,0,0,0,1]
["Q73","RXL","BLACKPOOL TEACHING HOSPITALS NHS FOUNDATION TRUST","Primary Care",97,0.94845360824742264,1.0309278350515464E-2,68,24,4,1,0,0]
["Q73","RXV","GREATER MANCHESTER WEST MENTAL HEALTH NHS FOUNDATION TRUST","Acute Services",55,0.90909090909090906,5.4545454545454543E-2,40,10,0,2,1,2]
["Q73","RXV","GREATER MANCHESTER WEST MENTAL HEALTH NHS FOUNDATION TRUST","Child & Adolescent Mental Health Services",5,0.8,0,"*","*","*","*","*","*"]
["Q73","RXV","GREATER MANCHESTER WEST MENTAL HEALTH NHS FOUNDATION TRUST","Primary Care",4,"*","*","*","*","*","*","*","*"]
["Q73","RXV","GREATER MANCHESTER WEST MENTAL HEALTH NHS FOUNDATION TRUST","Secondary Care Community Services",164,0.90243902439024393,4.2682926829268296E-2,115,33,5,5,2,4]
["Q73","RXV","GREATER MANCHESTER WEST MENTAL HEALTH NHS FOUNDATION TRUST","Secure & Forensic Services",138,0.70289855072463769,0.14492753623188406,41,56,12,10,10,9]
["Q73","RXV","GREATER MANCHESTER WEST MENTAL HEALTH NHS FOUNDATION TRUST","Specialist Services",6,0,0,0,0,0,0,0,6]
["Q73","RW5","LANCASHIRE CARE NHS FOUNDATION TRUST","Acute Services",35,0.88571428571428568,5.7142857142857141E-2,22,9,2,1,1,0]
["Q73","RW5","LANCASHIRE CARE NHS FOUNDATION TRUST","Child & Adolescent Mental Health Services",8,1,0,4,4,0,0,0,0]
["Q73","RW5","LANCASHIRE CARE NHS FOUNDATION TRUST","Mental Health Other",20,0.9,0,15,3,2,0,0,0]
["Q73","RW5","LANCASHIRE CARE NHS FOUNDATION TRUST","Primary Care",23,0.82608695652173914,0,12,7,2,0,0,2]
["Q73","RW5","LANCASHIRE CARE NHS FOUNDATION TRUST","Secondary Care Community Services",222,0.85135135135135132,4.5045045045045043E-2,126,63,10,8,2,13]
["Q73","RW5","LANCASHIRE CARE NHS FOUNDATION TRUST","Secure & Forensic Services",21,0.2857142857142857,0.38095238095238093,1,5,5,3,5,2]
["Q73","RW5","LANCASHIRE CARE NHS FOUNDATION TRUST","Specialist Services",49,0.75510204081632648,0.12244897959183673,9,28,2,3,3,4]
["Q73","TAE","MANCHESTER MENTAL HEALTH AND SOCIAL CARE TRUST","Acute Services",143,0.8601398601398601,2.097902097902098E-2,83,40,9,1,2,8]
["Q73","TAE","MANCHESTER MENTAL HEALTH AND SOCIAL CARE TRUST","Mental Health Other",18,0.94444444444444442,0,14,3,0,0,0,1]
["Q73","TAE","MANCHESTER MENTAL HEALTH AND SOCIAL CARE TRUST","Primary Care",39,0.92307692307692313,2.564102564102564E-2,28,8,1,1,0,1]
["Q73","TAE","MANCHESTER MENTAL HEALTH AND SOCIAL CARE TRUST","Secondary Care Community Services",108,0.86111111111111116,1.8518518518518517E-2,69,24,4,2,0,9]
["Q73","TAE","MANCHESTER MENTAL HEALTH AND SOCIAL CARE TRUST","Specialist Services",45,0.97777777777777775,0,36,8,0,0,0,1]
["Q73","RT2","PENNINE CARE NHS FOUNDATION TRUST","Acute Services",76,0.89473684210526316,9.2105263157894732E-2,48,20,1,1,6,0]
["Q73","RT2","PENNINE CARE NHS FOUNDATION TRUST","Child & Adolescent Mental Health Services",49,0.89795918367346939,0,"*","*","*","*","*","*"]
["Q73","RT2","PENNINE CARE NHS FOUNDATION TRUST","Mental Health Other",146,0.90410958904109584,3.4246575342465752E-2,127,5,1,3,2,8]
["Q73","RT2","PENNINE CARE NHS FOUNDATION TRUST","Secondary Care Community Services",121,0.93388429752066116,3.3057851239669422E-2,89,24,3,2,2,1]
["Q73","RT2","PENNINE CARE NHS FOUNDATION TRUST","Specialist Services",4,"*","*","*","*","*","*","*","*"]
["Q74","RNN","CUMBRIA PARTNERSHIP NHS FOUNDATION TRUST","Acute Services",54,0.79629629629629628,7.407407407407407E-2,28,15,6,3,1,1]
["Q74","RNN","CUMBRIA PARTNERSHIP NHS FOUNDATION TRUST","Child & Adolescent Mental Health Services",3,"*","*","*","*","*","*","*","*"]
["Q74","RNN","CUMBRIA PARTNERSHIP NHS FOUNDATION TRUST","Primary Care",226,0.95575221238938057,8.8495575221238937E-3,163,53,7,1,1,1]
["Q74","RNN","CUMBRIA PARTNERSHIP NHS FOUNDATION TRUST","Secondary Care Community Services",2,"*","*","*","*","*","*","*","*"]
["Q74","RR7","GATESHEAD HEALTH NHS FOUNDATION TRUST","Secondary Care Community Services",34,1,0,34,0,0,0,0,0]
["Q74","RR7","GATESHEAD HEALTH NHS FOUNDATION TRUST","Specialist Services",7,1,0,7,0,0,0,0,0]
["Q74","RX4","NORTHUMBERLAND, TYNE AND WEAR NHS FOUNDATION TRUST","Acute Services",13,0.61538461538461542,0.15384615384615385,5,3,2,1,1,1]
["Q74","RX4","NORTHUMBERLAND, TYNE AND WEAR NHS FOUNDATION TRUST","Mental Health Other",1,"*","*","*","*","*","*","*","*"]
["Q74","RX4","NORTHUMBERLAND, TYNE AND WEAR NHS FOUNDATION TRUST","Secondary Care Community Services",136,0.75735294117647056,2.9411764705882353E-2,56,47,8,2,2,21]
["Q74","RX4","NORTHUMBERLAND, TYNE AND WEAR NHS FOUNDATION TRUST","Secure & Forensic Services",1,"*","*","*","*","*","*","*","*"]
["Q74","RX4","NORTHUMBERLAND, TYNE AND WEAR NHS FOUNDATION TRUST","Specialist Services",14,0.9285714285714286,0,7,6,1,0,0,0]
["Q74","RTF","NORTHUMBRIA HEALTHCARE NHS FOUNDATION TRUST","Primary Care",2,"*","*","*","*","*","*","*","*"]
["Q74","RTF","NORTHUMBRIA HEALTHCARE NHS FOUNDATION TRUST","Secondary Care Community Services",7,1,0,"*","*","*","*","*","*"]
["Q74","RE9","SOUTH TYNESIDE NHS FOUNDATION TRUST","Child & Adolescent Mental Health Services",33,1,0,29,4,0,0,0,0]
["Q74","RE9","SOUTH TYNESIDE NHS FOUNDATION TRUST","Primary Care",86,0.98837209302325579,0,70,15,1,0,0,0]
["Q74","RX3","TEES, ESK AND WEAR VALLEYS NHS FOUNDATION TRUST","Acute Services",287,0.84668989547038331,6.2717770034843204E-2,147,96,19,10,8,7]
["Q74","RX3","TEES, ESK AND WEAR VALLEYS NHS FOUNDATION TRUST","Child & Adolescent Mental Health Services",129,0.62015503875968991,0.13178294573643412,33,47,15,4,13,17]
["Q74","RX3","TEES, ESK AND WEAR VALLEYS NHS FOUNDATION TRUST","Mental Health Other",55,0.87272727272727268,3.6363636363636362E-2,22,26,4,1,1,1]
["Q74","RX3","TEES, ESK AND WEAR VALLEYS NHS FOUNDATION TRUST","Primary Care",136,0.92647058823529416,1.4705882352941176E-2,75,51,5,2,0,3]
["Q74","RX3","TEES, ESK AND WEAR VALLEYS NHS FOUNDATION TRUST","Secondary Care Community Services",732,0.94672131147540983,1.7759562841530054E-2,289,404,18,8,5,8]
["Q74","RX3","TEES, ESK AND WEAR VALLEYS NHS FOUNDATION TRUST","Secure & Forensic Services",11,0.72727272727272729,0.18181818181818182,1,7,1,1,1,0]
["Q74","RX3","TEES, ESK AND WEAR VALLEYS NHS FOUNDATION TRUST","Specialist Services",31,0.87096774193548387,0,20,7,4,0,0,0]
["Q75","RTV","5 BOROUGHS PARTNERSHIP NHS FOUNDATION TRUST","Acute Services",8,0.875,0.125,3,4,0,0,1,0]
["Q75","RTV","5 BOROUGHS PARTNERSHIP NHS FOUNDATION TRUST","Child & Adolescent Mental Health Services",63,0.58730158730158732,0.17460317460317459,25,12,1,1,10,14]
["Q75","RTV","5 BOROUGHS PARTNERSHIP NHS FOUNDATION TRUST","Primary Care",58,0.93103448275862066,1.7241379310344827E-2,36,18,3,1,0,0]
["Q75","RTV","5 BOROUGHS PARTNERSHIP NHS FOUNDATION TRUST","Secondary Care Community Services",82,0.95121951219512191,1.2195121951219513E-2,65,13,2,0,1,1]
["Q75","RTV","5 BOROUGHS PARTNERSHIP NHS FOUNDATION TRUST","Specialist Services",194,0.92268041237113407,5.1546391752577317E-2,122,57,3,8,2,2]
["Q75","RBS","ALDER HEY CHILDREN'S NHS FOUNDATION TRUST","Child & Adolescent Mental Health Services",12,0.83333333333333337,0,6,4,1,0,0,1]
["Q75","RXA","CHESHIRE AND WIRRAL PARTNERSHIP NHS FOUNDATION TRUST","Acute Services",20,0.9,0,12,6,0,0,0,2]
["Q75","RXA","CHESHIRE AND WIRRAL PARTNERSHIP NHS FOUNDATION TRUST","Child & Adolescent Mental Health Services",12,0.83333333333333337,0,10,0,2,0,0,0]
["Q75","RXA","CHESHIRE AND WIRRAL PARTNERSHIP NHS FOUNDATION TRUST","Primary Care",55,1,0,44,11,0,0,0,0]
["Q75","RXA","CHESHIRE AND WIRRAL PARTNERSHIP NHS FOUNDATION TRUST","Secondary Care Community Services",119,0.89075630252100846,5.8823529411764705E-2,87,19,2,1,6,4]
["Q75","RXA","CHESHIRE AND WIRRAL PARTNERSHIP NHS FOUNDATION TRUST","Specialist Services",17,1,0,10,7,0,0,0,0]
["Q75","RW4","MERSEY CARE NHS TRUST","Acute Services",95,0.94736842105263153,0,57,33,4,0,0,1]
["Q75","RW4","MERSEY CARE NHS TRUST","Secondary Care Community Services",68,0.97058823529411764,0,41,25,0,0,0,2]
["Q75","RW4","MERSEY CARE NHS TRUST","Secure & Forensic Services",97,0.73195876288659789,5.1546391752577317E-2,25,46,15,4,1,6]
["Q76","RXM","DERBYSHIRE HEALTHCARE NHS FOUNDATION TRUST","Acute Services",29,0.82758620689655171,3.4482758620689655E-2,"*","*","*","*","*","*"]
["Q76","RXM","DERBYSHIRE HEALTHCARE NHS FOUNDATION TRUST","Secondary Care Community Services",3,"*","*","*","*","*","*","*","*"]
["Q76","RLY","NORTH STAFFORDSHIRE COMBINED HEALTHCARE NHS TRUST","Acute Services",44,0.90909090909090906,2.2727272727272728E-2,31,9,2,0,1,1]
["Q76","RLY","NORTH STAFFORDSHIRE COMBINED HEALTHCARE NHS TRUST","Secondary Care Community Services",10,0.8,0.1,5,3,1,0,1,0]
["Q76","RHA","NOTTINGHAMSHIRE HEALTHCARE NHS FOUNDATION TRUST","Acute Services",38,0.78947368421052633,7.8947368421052627E-2,21,9,4,2,1,1]
["Q76","RHA","NOTTINGHAMSHIRE HEALTHCARE NHS FOUNDATION TRUST","Child & Adolescent Mental Health Services",25,0.96,0.04,15,9,0,0,1,0]
["Q76","RHA","NOTTINGHAMSHIRE HEALTHCARE NHS FOUNDATION TRUST","Primary Care",51,0.98039215686274506,0,43,7,1,0,0,0]
["Q76","RHA","NOTTINGHAMSHIRE HEALTHCARE NHS FOUNDATION TRUST","Secondary Care Community Services",168,0.97023809523809523,1.1904761904761904E-2,113,50,1,1,1,2]
["Q76","RHA","NOTTINGHAMSHIRE HEALTHCARE NHS FOUNDATION TRUST","Secure & Forensic Services",20,0.7,0.2,11,3,2,1,3,0]
["Q76","RHA","NOTTINGHAMSHIRE HEALTHCARE NHS FOUNDATION TRUST","Specialist Services",26,1,0,24,2,0,0,0,0]
["Q76","R1D","SHROPSHIRE COMMUNITY HEALTH NHS TRUST","Child & Adolescent Mental Health Services",9,0.88888888888888884,0.1111111111111111,4,4,0,1,0,0]
["Q76","R1D","SHROPSHIRE COMMUNITY HEALTH NHS TRUST","Specialist Services",7,1,0,5,2,0,0,0,0]
["Q76","RRE","SOUTH STAFFORDSHIRE AND SHROPSHIRE HEALTHCARE NHS FOUNDATION TRUST","Acute Services",42,0.66666666666666663,0.19047619047619047,8,20,4,2,6,2]
["Q76","RRE","SOUTH STAFFORDSHIRE AND SHROPSHIRE HEALTHCARE NHS FOUNDATION TRUST","Child & Adolescent Mental Health Services",12,1,0,11,1,0,0,0,0]
["Q76","RRE","SOUTH STAFFORDSHIRE AND SHROPSHIRE HEALTHCARE NHS FOUNDATION TRUST","Mental Health Other",10,0.9,0.1,6,3,0,1,0,0]
["Q76","RRE","SOUTH STAFFORDSHIRE AND SHROPSHIRE HEALTHCARE NHS FOUNDATION TRUST","Primary Care",85,0.92941176470588238,4.7058823529411764E-2,50,29,0,2,2,2]
["Q76","RRE","SOUTH STAFFORDSHIRE AND SHROPSHIRE HEALTHCARE NHS FOUNDATION TRUST","Secondary Care Community Services",117,0.96581196581196582,0,84,29,3,0,0,1]
["Q76","RRE","SOUTH STAFFORDSHIRE AND SHROPSHIRE HEALTHCARE NHS FOUNDATION TRUST","Specialist Services",13,0.92307692307692313,7.6923076923076927E-2,6,6,0,1,0,0]
["Q77","RXT","BIRMINGHAM AND SOLIHULL MENTAL HEALTH NHS FOUNDATION TRUST","Acute Services",94,0.78723404255319152,0.13829787234042554,33,41,6,4,9,1]
["Q77","RXT","BIRMINGHAM AND SOLIHULL MENTAL HEALTH NHS FOUNDATION TRUST","Child & Adolescent Mental Health Services",6,0.33333333333333331,0.66666666666666663,0,2,0,1,3,0]
["Q77","RXT","BIRMINGHAM AND SOLIHULL MENTAL HEALTH NHS FOUNDATION TRUST","Mental Health Other",37,0.97297297297297303,0,29,7,0,0,0,1]
["Q77","RXT","BIRMINGHAM AND SOLIHULL MENTAL HEALTH NHS FOUNDATION TRUST","Primary Care",304,0.96381578947368418,9.8684210526315784E-3,200,93,4,1,2,4]
["Q77","RXT","BIRMINGHAM AND SOLIHULL MENTAL HEALTH NHS FOUNDATION TRUST","Secondary Care Community Services",216,0.84722222222222221,4.6296296296296294E-2,100,83,16,3,7,7]
["Q77","RXT","BIRMINGHAM AND SOLIHULL MENTAL HEALTH NHS FOUNDATION TRUST","Secure & Forensic Services",19,0.73684210526315785,0.15789473684210525,12,2,1,1,2,1]
["Q77","RXT","BIRMINGHAM AND SOLIHULL MENTAL HEALTH NHS FOUNDATION TRUST","Specialist Services",113,0.90265486725663713,2.6548672566371681E-2,68,34,7,2,1,1]
["Q77","RQ3","BIRMINGHAM CHILDREN'S HOSPITAL NHS FOUNDATION TRUST","Child & Adolescent Mental Health Services",9,1,0,6,3,0,0,0,0]
["Q77","TAJ","BLACK COUNTRY PARTNERSHIP NHS FOUNDATION TRUST","Mental Health Other",10,0.9,0,7,2,1,0,0,0]
["Q77","RYG","COVENTRY AND WARWICKSHIRE PARTNERSHIP NHS TRUST","Acute Services",10,0.7,0.2,3,4,0,1,1,1]
["Q77","RYG","COVENTRY AND WARWICKSHIRE PARTNERSHIP NHS TRUST","Child & Adolescent Mental Health Services",1,"*","*","*","*","*","*","*","*"]
["Q77","RYG","COVENTRY AND WARWICKSHIRE PARTNERSHIP NHS TRUST","Mental Health Other",5,1,0,"*","*","*","*","*","*"]
["Q77","RYG","COVENTRY AND WARWICKSHIRE PARTNERSHIP NHS TRUST","Secondary Care Community Services",33,0.87878787878787878,3.0303030303030304E-2,22,7,1,0,1,2]
["Q77","RYK","DUDLEY AND WALSALL MENTAL HEALTH PARTNERSHIP NHS TRUST","Secondary Care Community Services",147,0.70748299319727892,6.8027210884353739E-3,50,54,4,1,0,38]
["Q77","R1A","WORCESTERSHIRE HEALTH AND CARE NHS TRUST","Secondary Care Community Services",7,0.8571428571428571,0.14285714285714285,2,4,0,1,0,0]
["Q78","RY4","HERTFORDSHIRE COMMUNITY NHS TRUST","Mental Health Other",29,0.86206896551724133,0.13793103448275862,15,10,0,1,3,0]
["Q78","RWR","HERTFORDSHIRE PARTNERSHIP UNIVERSITY NHS FOUNDATION TRUST","Acute Services",191,0.89005235602094246,5.7591623036649213E-2,117,53,4,7,4,6]
["Q78","RWR","HERTFORDSHIRE PARTNERSHIP UNIVERSITY NHS FOUNDATION TRUST","Child & Adolescent Mental Health Services",49,0.34693877551020408,0.55102040816326525,11,6,5,5,22,0]
["Q78","RWR","HERTFORDSHIRE PARTNERSHIP UNIVERSITY NHS FOUNDATION TRUST","Primary Care",53,0.96226415094339623,0,33,18,1,0,0,1]
["Q78","RWR","HERTFORDSHIRE PARTNERSHIP UNIVERSITY NHS FOUNDATION TRUST","Secondary Care Community Services",101,0.88118811881188119,6.9306930693069313E-2,56,33,4,4,3,1]
["Q78","RWR","HERTFORDSHIRE PARTNERSHIP UNIVERSITY NHS FOUNDATION TRUST","Secure & Forensic Services",12,0.58333333333333337,8.3333333333333329E-2,2,5,0,0,1,4]
["Q78","RWR","HERTFORDSHIRE PARTNERSHIP UNIVERSITY NHS FOUNDATION TRUST","Specialist Services",21,0.95238095238095233,0,16,4,0,0,0,1]
["Q78","RT5","LEICESTERSHIRE PARTNERSHIP NHS TRUST","Acute Services",16,0.8125,6.25E-2,6,7,2,1,0,0]
["Q78","RT5","LEICESTERSHIRE PARTNERSHIP NHS TRUST","Child & Adolescent Mental Health Services",61,0.91803278688524592,3.2786885245901641E-2,38,18,3,0,2,0]
["Q78","RT5","LEICESTERSHIRE PARTNERSHIP NHS TRUST","Mental Health Other",21,1,0,13,8,0,0,0,0]
["Q78","RT5","LEICESTERSHIRE PARTNERSHIP NHS TRUST","Secondary Care Community Services",32,0.90625,0,23,6,3,0,0,0]
["Q78","RT5","LEICESTERSHIRE PARTNERSHIP NHS TRUST","Specialist Services",16,1,0,15,1,0,0,0,0]
["Q78","RP7","LINCOLNSHIRE PARTNERSHIP NHS FOUNDATION TRUST","Acute Services",43,0.83720930232558144,4.6511627906976744E-2,25,11,1,1,1,4]
["Q78","RP7","LINCOLNSHIRE PARTNERSHIP NHS FOUNDATION TRUST","Child & Adolescent Mental Health Services",81,0.86419753086419748,1.2345679012345678E-2,68,2,8,1,0,2]
["Q78","RP7","LINCOLNSHIRE PARTNERSHIP NHS FOUNDATION TRUST","Mental Health Other",25,1,0,25,0,0,0,0,0]
["Q78","RP7","LINCOLNSHIRE PARTNERSHIP NHS FOUNDATION TRUST","Primary Care",330,0.98484848484848486,3.0303030303030303E-3,286,39,0,1,0,4]
["Q78","RP7","LINCOLNSHIRE PARTNERSHIP NHS FOUNDATION TRUST","Secondary Care Community Services",163,0.95092024539877296,0,122,33,7,0,0,1]
["Q78","RP7","LINCOLNSHIRE PARTNERSHIP NHS FOUNDATION TRUST","Specialist Services",7,1,0,4,3,0,0,0,0]
["Q78","RP1","NORTHAMPTONSHIRE HEALTHCARE NHS FOUNDATION TRUST","Acute Services",75,0.76,6.6666666666666666E-2,30,27,9,2,3,4]
["Q78","RP1","NORTHAMPTONSHIRE HEALTHCARE NHS FOUNDATION TRUST","Child & Adolescent Mental Health Services",101,0.81188118811881194,1.9801980198019802E-2,47,35,9,2,0,8]
["Q78","RP1","NORTHAMPTONSHIRE HEALTHCARE NHS FOUNDATION TRUST","Mental Health Other",13,0.92307692307692313,0,10,2,1,0,0,0]
["Q78","RP1","NORTHAMPTONSHIRE HEALTHCARE NHS FOUNDATION TRUST","Primary Care",1,"*","*","*","*","*","*","*","*"]
["Q78","RP1","NORTHAMPTONSHIRE HEALTHCARE NHS FOUNDATION TRUST","Secondary Care Community Services",235,0.93191489361702129,8.5106382978723406E-3,162,57,7,0,2,7]
["Q78","RP1","NORTHAMPTONSHIRE HEALTHCARE NHS FOUNDATION TRUST","Secure & Forensic Services",31,0.87096774193548387,3.2258064516129031E-2,15,12,1,0,1,2]
["Q78","RP1","NORTHAMPTONSHIRE HEALTHCARE NHS FOUNDATION TRUST","Specialist Services",9,1,0,"*","*","*","*","*","*"]
["Q79","RT1","CAMBRIDGESHIRE AND PETERBOROUGH NHS FOUNDATION TRUST","Acute Services",163,0.76687116564417179,5.5214723926380369E-2,72,53,16,4,5,13]
["Q79","RT1","CAMBRIDGESHIRE AND PETERBOROUGH NHS FOUNDATION TRUST","Child & Adolescent Mental Health Services",18,1,0,9,9,0,0,0,0]
["Q79","RT1","CAMBRIDGESHIRE AND PETERBOROUGH NHS FOUNDATION TRUST","Mental Health Other",4,"*","*","*","*","*","*","*","*"]
["Q79","RT1","CAMBRIDGESHIRE AND PETERBOROUGH NHS FOUNDATION TRUST","Primary Care",59,0.98305084745762716,1.6949152542372881E-2,45,13,0,0,1,0]
["Q79","RT1","CAMBRIDGESHIRE AND PETERBOROUGH NHS FOUNDATION TRUST","Secondary Care Community Services",191,0.92146596858638741,1.5706806282722512E-2,125,51,7,3,0,5]
["Q79","RT1","CAMBRIDGESHIRE AND PETERBOROUGH NHS FOUNDATION TRUST","Secure & Forensic Services",4,"*","*","*","*","*","*","*","*"]
["Q79","RT1","CAMBRIDGESHIRE AND PETERBOROUGH NHS FOUNDATION TRUST","Specialist Services",30,0.8666666666666667,0,19,7,2,0,0,2]
["Q79","RMY","NORFOLK AND SUFFOLK NHS FOUNDATION TRUST","Acute Services",10,0.9,0.1,"*","*","*","*","*","*"]
["Q79","RMY","NORFOLK AND SUFFOLK NHS FOUNDATION TRUST","Child & Adolescent Mental Health Services",1,"*","*","*","*","*","*","*","*"]
["Q79","RMY","NORFOLK AND SUFFOLK NHS FOUNDATION TRUST","Secondary Care Community Services",16,0.9375,0,13,2,1,0,0,0]
["Q79","RRD","NORTH ESSEX PARTNERSHIP UNIVERSITY NHS FOUNDATION TRUST","Mental Health Other",85,0.76470588235294112,0.11764705882352941,29,36,8,4,6,2]
["Q79","RWN","SOUTH ESSEX PARTNERSHIP UNIVERSITY NHS FOUNDATION TRUST","Acute Services",11,0.63636363636363635,0.36363636363636365,"*","*","*","*","*","*"]
["Q79","RWN","SOUTH ESSEX PARTNERSHIP UNIVERSITY NHS FOUNDATION TRUST","Child & Adolescent Mental Health Services",24,0.91666666666666663,8.3333333333333329E-2,19,3,0,2,0,0]
["Q79","RWN","SOUTH ESSEX PARTNERSHIP UNIVERSITY NHS FOUNDATION TRUST","Primary Care",2,"*","*","*","*","*","*","*","*"]
["Q79","RWN","SOUTH ESSEX PARTNERSHIP UNIVERSITY NHS FOUNDATION TRUST","Secondary Care Community Services",38,0.78947368421052633,0.15789473684210525,17,13,2,3,3,0]
["Q79","RWN","SOUTH ESSEX PARTNERSHIP UNIVERSITY NHS FOUNDATION TRUST","Specialist Services",21,0.80952380952380953,0.14285714285714285,14,3,1,2,1,0]
["Q80","RJ8","CORNWALL PARTNERSHIP NHS FOUNDATION TRUST","Acute Services",6,1,0,4,2,0,0,0,0]
["Q80","RJ8","CORNWALL PARTNERSHIP NHS FOUNDATION TRUST","Child & Adolescent Mental Health Services",9,0.77777777777777779,0.22222222222222221,4,3,0,1,1,0]
["Q80","RJ8","CORNWALL PARTNERSHIP NHS FOUNDATION TRUST","Secondary Care Community Services",176,0.9375,3.4090909090909088E-2,118,47,3,3,3,2]
["Q80","RJ8","CORNWALL PARTNERSHIP NHS FOUNDATION TRUST","Specialist Services",6,0.66666666666666663,0.33333333333333331,4,0,0,0,2,0]
["Q80","RWV","DEVON PARTNERSHIP NHS TRUST","Acute Services",10,0.9,0,8,1,1,0,0,0]
["Q80","RWV","DEVON PARTNERSHIP NHS TRUST","Primary Care",6,0.33333333333333331,0.66666666666666663,"*","*","*","*","*","*"]
["Q80","RWV","DEVON PARTNERSHIP NHS TRUST","Secondary Care Community Services",56,0.9107142857142857,1.7857142857142856E-2,45,6,0,0,1,4]
["Q80","RWV","DEVON PARTNERSHIP NHS TRUST","Secure & Forensic Services",3,"*","*","*","*","*","*","*","*"]
["Q80","RWV","DEVON PARTNERSHIP NHS TRUST","Specialist Services",22,0.81818181818181823,4.5454545454545456E-2,15,3,0,1,0,3]
["Q80","RH5","SOMERSET PARTNERSHIP NHS FOUNDATION TRUST","Acute Services",26,0.84615384615384615,0,17,5,3,0,0,1]
["Q80","RH5","SOMERSET PARTNERSHIP NHS FOUNDATION TRUST","Child & Adolescent Mental Health Services",11,0.90909090909090906,0,"*","*","*","*","*","*"]
["Q80","RH5","SOMERSET PARTNERSHIP NHS FOUNDATION TRUST","Mental Health Other",105,0.95238095238095233,0,76,24,4,0,0,1]
["Q80","RH5","SOMERSET PARTNERSHIP NHS FOUNDATION TRUST","Secure & Forensic Services",1,"*","*","*","*","*","*","*","*"]
["Q81","RXY","KENT AND MEDWAY NHS AND SOCIAL CARE PARTNERSHIP TRUST","Acute Services",48,0.75,0.14583333333333334,22,14,1,1,6,4]
["Q81","RXY","KENT AND MEDWAY NHS AND SOCIAL CARE PARTNERSHIP TRUST","Mental Health Other",4,"*","*","*","*","*","*","*","*"]
["Q81","RXY","KENT AND MEDWAY NHS AND SOCIAL CARE PARTNERSHIP TRUST","Secondary Care Community Services",58,0.86206896551724133,0.10344827586206896,37,13,1,3,3,1]
["Q81","RXY","KENT AND MEDWAY NHS AND SOCIAL CARE PARTNERSHIP TRUST","Secure & Forensic Services",44,0.75,0.13636363636363635,28,5,2,3,3,3]
["Q81","RXY","KENT AND MEDWAY NHS AND SOCIAL CARE PARTNERSHIP TRUST","Specialist Services",13,0.76923076923076927,0.15384615384615385,"*","*","*","*","*","*"]
["Q81","RXX","SURREY AND BORDERS PARTNERSHIP NHS FOUNDATION TRUST","Acute Services",58,0.82758620689655171,5.1724137931034482E-2,33,15,6,3,0,1]
["Q81","RXX","SURREY AND BORDERS PARTNERSHIP NHS FOUNDATION TRUST","Child & Adolescent Mental Health Services",91,0.8351648351648352,2.197802197802198E-2,37,39,8,2,0,5]
["Q81","RXX","SURREY AND BORDERS PARTNERSHIP NHS FOUNDATION TRUST","Secondary Care Community Services",107,0.86915887850467288,7.476635514018691E-2,58,35,5,1,7,1]
["Q81","RXX","SURREY AND BORDERS PARTNERSHIP NHS FOUNDATION TRUST","Specialist Services",24,0.91666666666666663,4.1666666666666664E-2,10,12,1,1,0,0]
["Q81","RX2","SUSSEX PARTNERSHIP NHS FOUNDATION TRUST","Acute Services",57,0.78947368421052633,0.10526315789473684,33,12,6,5,1,0]
["Q81","RX2","SUSSEX PARTNERSHIP NHS FOUNDATION TRUST","Child & Adolescent Mental Health Services",24,0.83333333333333337,0.125,12,8,1,1,2,0]
["Q81","RX2","SUSSEX PARTNERSHIP NHS FOUNDATION TRUST","Primary Care",4,"*","*","*","*","*","*","*","*"]
["Q81","RX2","SUSSEX PARTNERSHIP NHS FOUNDATION TRUST","Secondary Care Community Services",31,0.967741935483871,0,20,10,1,0,0,0]
["Q81","RX2","SUSSEX PARTNERSHIP NHS FOUNDATION TRUST","Secure & Forensic Services",75,0.57333333333333336,0.16,11,32,13,7,5,7]
["Q81","RX2","SUSSEX PARTNERSHIP NHS FOUNDATION TRUST","Specialist Services",19,1,0,"*","*","*","*","*","*"]
["Q82","RTQ","2GETHER NHS FOUNDATION TRUST","Acute Services",20,0.95,0.05,9,10,0,1,0,0]
["Q82","RTQ","2GETHER NHS FOUNDATION TRUST","Child & Adolescent Mental Health Services",25,0.92,0,17,6,2,0,0,0]
["Q82","RTQ","2GETHER NHS FOUNDATION TRUST","Mental Health Other",8,0.875,0,"*","*","*","*","*","*"]
["Q82","RTQ","2GETHER NHS FOUNDATION TRUST","Primary Care",1,"*","*","*","*","*","*","*","*"]
["Q82","RTQ","2GETHER NHS FOUNDATION TRUST","Secondary Care Community Services",63,0.93650793650793651,3.1746031746031744E-2,45,14,2,1,1,0]
["Q82","RVN","AVON AND WILTSHIRE MENTAL HEALTH PARTNERSHIP NHS TRUST","Acute Services",73,0.86301369863013699,8.2191780821917804E-2,38,25,2,1,5,2]
["Q82","RVN","AVON AND WILTSHIRE MENTAL HEALTH PARTNERSHIP NHS TRUST","Mental Health Other",179,0.9050279329608939,3.3519553072625698E-2,107,55,4,2,4,7]
["Q82","RVN","AVON AND WILTSHIRE MENTAL HEALTH PARTNERSHIP NHS TRUST","Primary Care",2,"*","*","*","*","*","*","*","*"]
["Q82","RVN","AVON AND WILTSHIRE MENTAL HEALTH PARTNERSHIP NHS TRUST","Secondary Care Community Services",475,0.88421052631578945,4.8421052631578948E-2,295,125,16,7,16,16]
["Q82","RVN","AVON AND WILTSHIRE MENTAL HEALTH PARTNERSHIP NHS TRUST","Secure & Forensic Services",15,0.6,0.13333333333333333,"*","*","*","*","*","*"]
["Q82","RVN","AVON AND WILTSHIRE MENTAL HEALTH PARTNERSHIP NHS TRUST","Specialist Services",75,0.94666666666666666,0,50,21,2,0,0,2]
["Q82","RWX","BERKSHIRE HEALTHCARE NHS FOUNDATION TRUST","Acute Services",5,0.6,0,1,2,1,0,0,1]
["Q82","RWX","BERKSHIRE HEALTHCARE NHS FOUNDATION TRUST","Child & Adolescent Mental Health Services",6,0.83333333333333337,0,4,1,1,0,0,0]
["Q82","RWX","BERKSHIRE HEALTHCARE NHS FOUNDATION TRUST","Mental Health Other",5,1,0,5,0,0,0,0,0]
["Q82","RWX","BERKSHIRE HEALTHCARE NHS FOUNDATION TRUST","Primary Care",146,0.95890410958904104,6.8493150684931503E-3,106,34,5,0,1,0]
["Q82","RWX","BERKSHIRE HEALTHCARE NHS FOUNDATION TRUST","Secondary Care Community Services",26,1,0,17,9,0,0,0,0]
["Q82","RWX","BERKSHIRE HEALTHCARE NHS FOUNDATION TRUST","Specialist Services",13,0.92307692307692313,0,9,3,1,0,0,0]
["Q82","RNU","OXFORD HEALTH NHS FOUNDATION TRUST","Acute Services",10,0.5,0.2,3,2,2,1,1,1]
["Q82","RNU","OXFORD HEALTH NHS FOUNDATION TRUST","Child & Adolescent Mental Health Services",79,0.86075949367088611,6.3291139240506333E-2,47,21,0,1,4,6]
["Q82","RNU","OXFORD HEALTH NHS FOUNDATION TRUST","Primary Care",115,0.9826086956521739,0,82,31,1,0,0,1]
["Q82","RNU","OXFORD HEALTH NHS FOUNDATION TRUST","Secondary Care Community Services",252,0.87301587301587302,4.3650793650793648E-2,130,90,15,7,4,6]
["Q82","RNU","OXFORD HEALTH NHS FOUNDATION TRUST","Specialist Services",36,1,0,31,5,0,0,0,0]
["IS1","NVR","ALPHA HOSPITALS","Child & Adolescent Mental Health Services",3,"*","*","*","*","*","*","*","*"]
["IS1","NVR","ALPHA HOSPITALS","Secure & Forensic Services",5,0.2,0.6,"*","*","*","*","*","*"]
["IS1","NWX","BRIGHTON & HOVE INTEGRATED CARE SERVICE","Primary Care",74,0.98648648648648651,1.3513513513513514E-2,69,4,0,1,0,0]
["IS1","NNF","CITY HEALTH CARE PARTNERSHIP CIC","Primary Care",240,0.97916666666666663,0,"*","*","*","*","*","*"]
["IS1","NNF","CITY HEALTH CARE PARTNERSHIP CIC","Specialist Services",1,"*","*","*","*","*","*","*","*"]
["IS1","NMJ","CYGNET HEALTH CARE LIMITED","Child & Adolescent Mental Health Services",11,0.36363636363636365,0.18181818181818182,"*","*","*","*","*","*"]
["IS1","NMJ","CYGNET HEALTH CARE LIMITED","Secure & Forensic Services",4,"*","*","*","*","*","*","*","*"]
["IS1","NMJ","CYGNET HEALTH CARE LIMITED","Specialist Services",43,0.48837209302325579,0.30232558139534882,9,12,4,9,4,5]
["IS1","NQL","NAVIGO","Mental Health Other",328,0.93292682926829273,1.2195121951219513E-2,234,72,7,3,1,11]
["IS1","NR5","PLYMOUTH COMMUNITY HEALTHCARE (CIC)","Acute Services",34,0.82352941176470584,8.8235294117647065E-2,12,16,3,3,0,0]
["IS1","NR5","PLYMOUTH COMMUNITY HEALTHCARE (CIC)","Child & Adolescent Mental Health Services",6,0.83333333333333337,0,"*","*","*","*","*","*"]
["IS1","NR5","PLYMOUTH COMMUNITY HEALTHCARE (CIC)","Primary Care",20,1,0,17,3,0,0,0,0]
["IS1","NR5","PLYMOUTH COMMUNITY HEALTHCARE (CIC)","Secondary Care Community Services",3,"*","*","*","*","*","*","*","*"]
["IS1","NDK","YARBOROUGH CLEE CARE LIMITED","Secondary Care Community Services",7,1,0,5,2,0,0,0,0]

{"sheet":"BS","index":4,"n_rows":292,"n_cols":26,"rows_kept":292,"cut":false,"hidden":true,"merged":[]}
[null,"Sort","Region (Geo) code","Region (Geo) name","Trust code","Trust name","Category",null,"Code…","Name…","Name…","Please select criteria…","Please select criteria…","Please select criteria…",null,null,"Code…","Code…","Name…","Category…","<--fixed lists, linked lists -->","Code…","Name…","Code…","Name…","Category…"]
["Region (Geo)",1,1,1,"-","-","-",null,"IS1","Independent Sector Provider","Independent Sector Provider","Region (Geo) Code","Region (Geo) Code","Region (Geo) Code",null,null,"Q70","RDY","DORSET HEALTHCARE UNIVERSITY NHS FOUNDATION TRUST","Acute Services",null,"NDK","2GETHER NHS FOUNDATION TRUST","NDK","YARBOROUGH CLEE CARE LIMITED","Acute Services"]
["Trusts",1,1,1,1,1,"-",null,"Q70","NHS England Wessex","NHS England Central Midlands","Region (Geography)","Trust Code","Trust Code",null,null,"Q70","RDY","DORSET HEALTHCARE UNIVERSITY NHS FOUNDATION TRUST","Child & Adolescent Mental Health Services",null,"NMJ","5 BOROUGHS PARTNERSHIP NHS FOUNDATION TRUST","NMJ","CYGNET HEALTH CARE LIMITED","Child & Adolescent Mental Health Services"]
["Categories",1,1,1,1,1,1,null,"Q71","NHS England London","NHS England Cheshire & Merseyside","Total Responses","Trust Name","Trust Name",null,null,"Q70","RDY","DORSET HEALTHCARE UNIVERSITY NHS FOUNDATION TRUST","Mental Health Other",null,"NNF","ALDER HEY CHILDREN'S NHS FOUNDATION TRUST","NNF","CITY HEALTH CARE PARTNERSHIP CIC","Mental Health Other"]
[null,null,null,null,null,null,null,null,"Q72","NHS England Yorkshire & Humber","NHS England Cumbria & North East","Total Eligible","Total Responses","Category",null,null,"Q70","RDY","DORSET HEALTHCARE UNIVERSITY NHS FOUNDATION TRUST","Primary Care",null,"NQL","ALPHA HOSPITALS","NQL","NAVIGO","Primary Care"]
[null,null,null,null,null,null,null,null,"Q73","NHS England Lancashire & Greater Manchester","NHS England East","Percentage Recommended","Total Eligible","Total Responses",null,null,"Q70","RDY","DORSET HEALTHCARE UNIVERSITY NHS FOUNDATION TRUST","Secondary Care Community Services",null,"NR5","AVON AND WILTSHIRE MENTAL HEALTH PARTNERSHIP NHS TRUST","NR5","PLYMOUTH COMMUNITY HEALTHCARE (CIC)","Secondary Care Community Services"]
[null,null,null,null,null,null,null,null,"Q74","NHS England Cumbria & North East","NHS England Lancashire & Greater Manchester","Percentage Not  Recommended","Percentage Recommended","Percentage Recommended",null,null,"Q70","RDY","DORSET HEALTHCARE UNIVERSITY NHS FOUNDATION TRUST","Specialist Services",null,"NVR","BARNET, ENFIELD AND HARINGEY MENTAL HEALTH NHS TRUST","NVR","ALPHA HOSPITALS","Secure & Forensic Services"]
[null,null,null,null,null,null,null,null,"Q75","NHS England Cheshire & Merseyside","NHS England London","Extremely Likely","Percentage Not  Recommended","Percentage Not  Recommended",null,null,"Q70","R1F","ISLE OF WIGHT NHS TRUST","Acute Services",null,"NWX","BERKSHIRE HEALTHCARE NHS FOUNDATION TRUST","NWX","BRIGHTON & HOVE INTEGRATED CARE SERVICE","Specialist Services"]
[null,null,null,null,null,null,null,null,"Q76","NHS England North Midlands","NHS England North Midlands","Likely","Extremely Likely","Extremely Likely",null,null,"Q70","R1F","ISLE OF WIGHT NHS TRUST","Secondary Care Community Services",null,"R1A","BIRMINGHAM AND SOLIHULL MENTAL HEALTH NHS FOUNDATION TRUST","R1A","WORCESTERSHIRE HEALTH AND CARE NHS TRUST"]
[null,null,null,null,null,null,null,null,"Q77","NHS England West Midlands","NHS England South Central","Neither","Likely","Likely",null,null,"Q70","R1C","SOLENT NHS TRUST","Acute Services",null,"R1C","BIRMINGHAM CHILDREN'S HOSPITAL NHS FOUNDATION TRUST","R1C","SOLENT NHS TRUST"]
[null,null,null,null,null,null,null,null,"Q78","NHS England Central Midlands","NHS England South East","Unlikely","Neither","Neither",null,null,"Q70","R1C","SOLENT NHS TRUST","Child & Adolescent Mental Health Services",null,"R1D","BLACK COUNTRY PARTNERSHIP NHS FOUNDATION TRUST","R1D","SHROPSHIRE COMMUNITY HEALTH NHS TRUST"]
[null,null,null,null,null,null,null,null,"Q79","NHS England East","NHS England South West","Extremely Unlikely","Unlikely","Unlikely",null,null,"Q70","R1C","SOLENT NHS TRUST","Mental Health Other",null,"R1F","BLACKPOOL TEACHING HOSPITALS NHS FOUNDATION TRUST","R1F","ISLE OF WIGHT NHS TRUST"]
[null,null,null,null,null,null,null,null,"Q80","NHS England South West","NHS England Wessex","Don't Know","Extremely Unlikely","Extremely Unlikely",null,null,"Q70","R1C","SOLENT NHS TRUST","Secondary Care Community Services",null,"RAL","BRADFORD DISTRICT CARE NHS FOUNDATION TRUST","RAL","ROYAL FREE LONDON NHS FOUNDATION TRUST"]
[null,null,null,null,null,null,null,null,"Q81","NHS England South East","NHS England West Midlands",null,"Don't Know","Don't Know",null,null,"Q70","RW1","SOUTHERN HEALTH NHS FOUNDATION TRUST","Acute Services",null,"RAT","BRIGHTON & HOVE INTEGRATED CARE SERVICE","RAT","NORTH EAST LONDON NHS FOUNDATION TRUST"]
[null,null,null,null,null,null,null,null,"Q82","NHS England South Central","NHS England Yorkshire & Humber",null,"SMS/Text / Smartphone App",null,null,null,"Q70","RW1","SOUTHERN HEALTH NHS FOUNDATION TRUST","Child & Adolescent Mental Health Services",null,"RBS","CAMBRIDGESHIRE AND PETERBOROUGH NHS FOUNDATION TRUST","RBS","ALDER HEY CHILDREN'S NHS FOUNDATION TRUST"]
[null,null,null,null,null,null,null,null,null,null,null,null,"Electronic tablet/kiosk at point of discharge",null,null,null,"Q70","RW1","SOUTHERN HEALTH NHS FOUNDATION TRUST","Mental Health Other",null,"RCU","CAMDEN AND ISLINGTON NHS FOUNDATION TRUST","RCU","SHEFFIELD CHILDREN'S NHS FOUNDATION TRUST"]
[null,null,null,null,null,null,null,null,null,null,null,null,"Paper / postcard at point of discharge",null,null,null,"Q70","RW1","SOUTHERN HEALTH NHS FOUNDATION TRUST","Primary Care",null,"RDY","CENTRAL AND NORTH WEST LONDON NHS FOUNDATION TRUST","RDY","DORSET HEALTHCARE UNIVERSITY NHS FOUNDATION TRUST"]
[null,null,null,null,null,null,null,null,null,null,null,null,"Paper survey, sent to the patients home",null,null,null,"Q70","RW1","SOUTHERN HEALTH NHS FOUNDATION TRUST","Secondary Care Community Services",null,"RE9","CHESHIRE AND WIRRAL PARTNERSHIP NHS FOUNDATION TRUST","RE9","SOUTH TYNESIDE NHS FOUNDATION TRUST"]
[null,null,null,null,null,null,null,null,null,null,null,null,"Telephone survey once patient is home",null,null,null,"Q70","RW1","SOUTHERN HEALTH NHS FOUNDATION TRUST","Secure & Forensic Services",null,"RGD","CITY HEALTH CARE PARTNERSHIP CIC","RGD","LEEDS AND YORK PARTNERSHIP NHS FOUNDATION TRUST"]
[null,null,null,null,null,null,null,null,null,null,null,null,"Online survey once patient is home",null,null,null,"Q71","RRP","BARNET, ENFIELD AND HARINGEY MENTAL HEALTH NHS TRUST","Acute Services",null,"RH5","CORNWALL PARTNERSHIP NHS FOUNDATION TRUST","RH5","SOMERSET PARTNERSHIP NHS FOUNDATION TRUST"]
[null,null,null,null,null,null,null,null,null,null,null,null,"Other",null,null,null,"Q71","RRP","BARNET, ENFIELD AND HARINGEY MENTAL HEALTH NHS TRUST","Child & Adolescent Mental Health Services",null,"RHA","COVENTRY AND WARWICKSHIRE PARTNERSHIP NHS TRUST","RHA","NOTTINGHAMSHIRE HEALTHCARE NHS FOUNDATION TRUST"]
[null,null,null,null,null,null,null,null,null,null,null,null,null,null,null,null,"Q71","RRP","BARNET, ENFIELD AND HARINGEY MENTAL HEALTH NHS TRUST","Secondary Care Community Services",null,"RJ8","CUMBRIA PARTNERSHIP NHS FOUNDATION TRUST","RJ8","CORNWALL PARTNERSHIP NHS FOUNDATION TRUST"]
[null,null,null,null,null,null,null,null,null,null,null,null,null,null,null,null,"Q71","RRP","BARNET, ENFIELD AND HARINGEY MENTAL HEALTH NHS TRUST","Secure & Forensic Services",null,"RKL","CYGNET HEALTH CARE LIMITED","RKL","WEST LONDON MENTAL HEALTH NHS TRUST"]
[null,null,null,null,null,null,null,null,null,null,null,null,null,null,null,null,"Q71","RRP","BARNET, ENFIELD AND HARINGEY MENTAL HEALTH NHS TRUST","Specialist Services",null,"RLY","DERBYSHIRE HEALTHCARE NHS FOUNDATION TRUST","RLY","NORTH STAFFORDSHIRE COMBINED HEALTHCARE NHS TRUST"]
[null,null,null,null,null,null,null,null,null,null,null,null,null,null,null,null,"Q71","TAF","CAMDEN AND ISLINGTON NHS FOUNDATION TRUST","Acute Services",null,"RMY","DEVON PARTNERSHIP NHS TRUST","RMY","NORFOLK AND SUFFOLK NHS FOUNDATION TRUST"]
[null,null,null,null,null,null,null,null,null,null,null,null,null,null,null,null,"Q71","TAF","CAMDEN AND ISLINGTON NHS FOUNDATION TRUST","Mental Health Other",null,"RNK","DORSET HEALTHCARE UNIVERSITY NHS FOUNDATION TRUST","RNK","TAVISTOCK AND PORTMAN NHS FOUNDATION TRUST"]
[null,null,null,null,null,null,null,null,null,null,null,null,null,null,null,null,"Q71","TAF","CAMDEN AND ISLINGTON NHS FOUNDATION TRUST","Secondary Care Community Services",null,"RNN","DUDLEY AND WALSALL MENTAL HEALTH PARTNERSHIP NHS TRUST","RNN","CUMBRIA PARTNERSHIP NHS FOUNDATION TRUST"]
[null,null,null,null,null,null,null,null,null,null,null,null,null,null,null,null,"Q71","TAF","CAMDEN AND ISLINGTON NHS FOUNDATION TRUST","Specialist Services",null,"RNU","EAST LONDON NHS FOUNDATION TRUST","RNU","OXFORD HEALTH NHS FOUNDATION TRUST"]
[null,null,null,null,null,null,null,null,null,null,null,null,null,null,null,null,"Q71","RV3","CENTRAL AND NORTH WEST LONDON NHS FOUNDATION TRUST","Acute Services",null,"RP1","GATESHEAD HEALTH NHS FOUNDATION TRUST","RP1","NORTHAMPTONSHIRE HEALTHCARE NHS FOUNDATION TRUST"]
[null,null,null,null,null,null,null,null,null,null,null,null,null,null,null,null,"Q71","RV3","CENTRAL AND NORTH WEST LONDON NHS FOUNDATION TRUST","Child & Adolescent Mental Health Services",null,"RP7","GREATER MANCHESTER WEST MENTAL HEALTH NHS FOUNDATION TRUST","RP7","LINCOLNSHIRE PARTNERSHIP NHS FOUNDATION TRUST"]
[null,null,null,null,null,null,null,null,null,null,null,null,null,null,null,null,"Q71","RV3","CENTRAL AND NORTH WEST LONDON NHS FOUNDATION TRUST","Primary Care",null,"RPG","HERTFORDSHIRE COMMUNITY NHS TRUST","RPG","OXLEAS NHS FOUNDATION TRUST"]
[null,null,null,null,null,null,null,null,null,null,null,null,null,null,null,null,"Q71","RV3","CENTRAL AND NORTH WEST LONDON NHS FOUNDATION TRUST","Secondary Care Community Services",null,"RQ3","HERTFORDSHIRE PARTNERSHIP UNIVERSITY NHS FOUNDATION TRUST","RQ3","BIRMINGHAM CHILDREN'S HOSPITAL NHS FOUNDATION TRUST"]
[null,null,null,null,null,null,null,null,null,null,null,null,null,null,null,null,"Q71","RWK","EAST LONDON NHS FOUNDATION TRUST","Acute Services",null,"RQY","HUMBER NHS FOUNDATION TRUST","RQY","SOUTH WEST LONDON AND ST GEORGE'S MENTAL HEALTH NHS TRUST"]
[null,null,null,null,null,null,null,null,null,null,null,null,null,null,null,null,"Q71","RAT","NORTH EAST LONDON NHS FOUNDATION TRUST","Acute Services",null,"RR7","ISLE OF WIGHT NHS TRUST","RR7","GATESHEAD HEALTH NHS FOUNDATION TRUST"]
[null,null,null,null,null,null,null,null,null,null,null,null,null,null,null,null,"Q71","RAT","NORTH EAST LONDON NHS FOUNDATION TRUST","Child & Adolescent Mental Health Services",null,"RRD","KENT AND MEDWAY NHS AND SOCIAL CARE PARTNERSHIP TRUST","RRD","NORTH ESSEX PARTNERSHIP UNIVERSITY NHS FOUNDATION TRUST"]
[null,null,null,null,null,null,null,null,null,null,null,null,null,null,null,null,"Q71","RAT","NORTH EAST LONDON NHS FOUNDATION TRUST","Mental Health Other",null,"RRE","LANCASHIRE CARE NHS FOUNDATION TRUST","RRE","SOUTH STAFFORDSHIRE AND SHROPSHIRE HEALTHCARE NHS FOUNDATION TRUST"]
[null,null,null,null,null,null,null,null,null,null,null,null,null,null,null,null,"Q71","RAT","NORTH EAST LONDON NHS FOUNDATION TRUST","Secondary Care Community Services",null,"RRP","LEEDS AND YORK PARTNERSHIP NHS FOUNDATION TRUST","RRP","BARNET, ENFIELD AND HARINGEY MENTAL HEALTH NHS TRUST"]
[null,null,null,null,null,null,null,null,null,null,null,null,null,null,null,null,"Q71","RAT","NORTH EAST LONDON NHS FOUNDATION TRUST","Specialist Services",null,"RRV","LEEDS COMMUNITY HEALTHCARE NHS TRUST","RRV","UNIVERSITY COLLEGE LONDON HOSPITALS NHS FOUNDATION TRUST"]
[null,null,null,null,null,null,null,null,null,null,null,null,null,null,null,null,"Q71","RPG","OXLEAS NHS FOUNDATION TRUST","Acute Services",null,"RT1","LEICESTERSHIRE PARTNERSHIP NHS TRUST","RT1","CAMBRIDGESHIRE AND PETERBOROUGH NHS FOUNDATION TRUST"]
[null,null,null,null,null,null,null,null,null,null,null,null,null,null,null,null,"Q71","RPG","OXLEAS NHS FOUNDATION TRUST","Child & Adolescent Mental Health Services",null,"RT2","LINCOLNSHIRE PARTNERSHIP NHS FOUNDATION TRUST","RT2","PENNINE CARE NHS FOUNDATION TRUST"]
[null,null,null,null,null,null,null,null,null,null,null,null,null,null,null,null,"Q71","RPG","OXLEAS NHS FOUNDATION TRUST","Mental Health Other",null,"RT5","MANCHESTER MENTAL HEALTH AND SOCIAL CARE TRUST","RT5","LEICESTERSHIRE PARTNERSHIP NHS TRUST"]
[null,null,null,null,null,null,null,null,null,null,null,null,null,null,null,null,"Q71","RPG","OXLEAS NHS FOUNDATION TRUST","Primary Care",null,"RTF","MERSEY CARE NHS TRUST","RTF","NORTHUMBRIA HEALTHCARE NHS FOUNDATION TRUST"]
[null,null,null,null,null,null,null,null,null,null,null,null,null,null,null,null,"Q71","RPG","OXLEAS NHS FOUNDATION TRUST","Secondary Care Community Services",null,"RTQ","NAVIGO","RTQ","2GETHER NHS FOUNDATION TRUST"]
[null,null,null,null,null,null,null,null,null,null,null,null,null,null,null,null,"Q71","RPG","OXLEAS NHS FOUNDATION TRUST","Secure & Forensic Services",null,"RTV","NORFOLK AND SUFFOLK NHS FOUNDATION TRUST","RTV","5 BOROUGHS PARTNERSHIP NHS FOUNDATION TRUST"]
[null,null,null,null,null,null,null,null,null,null,null,null,null,null,null,null,"Q71","RAL","ROYAL FREE LONDON NHS FOUNDATION TRUST","Child & Adolescent Mental Health Services",null,"RV3","NORTH EAST LONDON NHS FOUNDATION TRUST","RV3","CENTRAL AND NORTH WEST LONDON NHS FOUNDATION TRUST"]
[null,null,null,null,null,null,null,null,null,null,null,null,null,null,null,null,"Q71","RV5","SOUTH LONDON AND MAUDSLEY NHS FOUNDATION TRUST","Acute Services",null,"RV5","NORTH ESSEX PARTNERSHIP UNIVERSITY NHS FOUNDATION TRUST","RV5","SOUTH LONDON AND MAUDSLEY NHS FOUNDATION TRUST"]
[null,null,null,null,null,null,null,null,null,null,null,null,null,null,null,null,"Q71","RV5","SOUTH LONDON AND MAUDSLEY NHS FOUNDATION TRUST","Child & Adolescent Mental Health Services",null,"RV9","NORTH STAFFORDSHIRE COMBINED HEALTHCARE NHS TRUST","RV9","HUMBER NHS FOUNDATION TRUST"]
[null,null,null,null,null,null,null,null,null,null,null,null,null,null,null,null,"Q71","RV5","SOUTH LONDON AND MAUDSLEY NHS FOUNDATION TRUST","Mental Health Other",null,"RVN","NORTHAMPTONSHIRE HEALTHCARE NHS FOUNDATION TRUST","RVN","AVON AND WILTSHIRE MENTAL HEALTH PARTNERSHIP NHS TRUST"]
[null,null,null,null,null,null,null,null,null,null,null,null,null,null,null,null,"Q71","RV5","SOUTH LONDON AND MAUDSLEY NHS FOUNDATION TRUST","Primary Care",null,"RW1","NORTHUMBERLAND, TYNE AND WEAR NHS FOUNDATION TRUST","RW1","SOUTHERN HEALTH NHS FOUNDATION TRUST"]
[null,null,null,null,null,null,null,null,null,null,null,null,null,null,null,null,"Q71","RV5","SOUTH LONDON AND MAUDSLEY NHS FOUNDATION TRUST","Secondary Care Community Services",null,"RW4","NORTHUMBRIA HEALTHCARE NHS FOUNDATION TRUST","RW4","MERSEY CARE NHS TRUST"]
[null,null,null,null,null,null,null,null,null,null,null,null,null,null,null,null,"Q71","RV5","SOUTH LONDON AND MAUDSLEY NHS FOUNDATION TRUST","Secure & Forensic Services",null,"RW5","NOTTINGHAMSHIRE HEALTHCARE NHS FOUNDATION TRUST","RW5","LANCASHIRE CARE NHS FOUNDATION TRUST"]
[null,null,null,null,null,null,null,null,null,null,null,null,null,null,null,null,"Q71","RV5","SOUTH LONDON AND MAUDSLEY NHS FOUNDATION TRUST","Specialist Services",null,"RWK","OXFORD HEALTH NHS FOUNDATION TRUST","RWK","EAST LONDON NHS FOUNDATION TRUST"]
[null,null,null,null,null,null,null,null,null,null,null,null,null,null,null,null,"Q71","RQY","SOUTH WEST LONDON AND ST GEORGE'S MENTAL HEALTH NHS TRUST","Acute Services",null,"RWN","OXLEAS NHS FOUNDATION TRUST","RWN","SOUTH ESSEX PARTNERSHIP UNIVERSITY NHS FOUNDATION TRUST"]
[null,null,null,null,null,null,null,null,null,null,null,null,null,null,null,null,"Q71","RQY","SOUTH WEST LONDON AND ST GEORGE'S MENTAL HEALTH NHS TRUST","Mental Health Other",null,"RWR","PENNINE CARE NHS FOUNDATION TRUST","RWR","HERTFORDSHIRE PARTNERSHIP UNIVERSITY NHS FOUNDATION TRUST"]
[null,null,null,null,null,null,null,null,null,null,null,null,null,null,null,null,"Q71","RQY","SOUTH WEST LONDON AND ST GEORGE'S MENTAL HEALTH NHS TRUST","Secondary Care Community Services",null,"RWV","PLYMOUTH COMMUNITY HEALTHCARE (CIC)","RWV","DEVON PARTNERSHIP NHS TRUST"]
[null,null,null,null,null,null,null,null,null,null,null,null,null,null,null,null,"Q71","RNK","TAVISTOCK AND PORTMAN NHS FOUNDATION TRUST","Mental Health Other",null,"RWX","ROTHERHAM DONCASTER AND SOUTH HUMBER NHS FOUNDATION TRUST","RWX","BERKSHIRE HEALTHCARE NHS FOUNDATION TRUST"]
[null,null,null,null,null,null,null,null,null,null,null,null,null,null,null,null,"Q71","RRV","UNIVERSITY COLLEGE LONDON HOSPITALS NHS FOUNDATION TRUST","Specialist Services",null,"RX2","ROYAL FREE LONDON NHS FOUNDATION TRUST","RX2","SUSSEX PARTNERSHIP NHS FOUNDATION TRUST"]
[null,null,null,null,null,null,null,null,null,null,null,null,null,null,null,null,"Q71","RKL","WEST LONDON MENTAL HEALTH NHS TRUST","Primary Care",null,"RX3","SHEFFIELD CHILDREN'S NHS FOUNDATION TRUST","RX3","TEES, ESK AND WEAR VALLEYS NHS FOUNDATION TRUST"]
[null,null,null,null,null,null,null,null,null,null,null,null,null,null,null,null,"Q71","RKL","WEST LONDON MENTAL HEALTH NHS TRUST","Secondary Care Community Services",null,"RX4","SHEFFIELD HEALTH & SOCIAL CARE NHS FOUNDATION TRUST","RX4","NORTHUMBERLAND, TYNE AND WEAR NHS FOUNDATION TRUST"]
[null,null,null,null,null,null,null,null,null,null,null,null,null,null,null,null,"Q71","RKL","WEST LONDON MENTAL HEALTH NHS TRUST","Secure & Forensic Services",null,"RXA","SHROPSHIRE COMMUNITY HEALTH NHS TRUST","RXA","CHESHIRE AND WIRRAL PARTNERSHIP NHS FOUNDATION TRUST"]
[null,null,null,null,null,null,null,null,null,null,null,null,null,null,null,null,"Q72","TAD","BRADFORD DISTRICT CARE NHS FOUNDATION TRUST","Acute Services",null,"RXE","SOLENT NHS TRUST","RXE","ROTHERHAM DONCASTER AND SOUTH HUMBER NHS FOUNDATION TRUST"]
[null,null,null,null,null,null,null,null,null,null,null,null,null,null,null,null,"Q72","TAD","BRADFORD DISTRICT CARE NHS FOUNDATION TRUST","Child & Adolescent Mental Health Services",null,"RXG","SOMERSET PARTNERSHIP NHS FOUNDATION TRUST","RXG","SOUTH WEST YORKSHIRE PARTNERSHIP NHS FOUNDATION TRUST"]
[null,null,null,null,null,null,null,null,null,null,null,null,null,null,null,null,"Q72","TAD","BRADFORD DISTRICT CARE NHS FOUNDATION TRUST","Mental Health Other",null,"RXL","SOUTH ESSEX PARTNERSHIP UNIVERSITY NHS FOUNDATION TRUST","RXL","BLACKPOOL TEACHING HOSPITALS NHS FOUNDATION TRUST"]
[null,null,null,null,null,null,null,null,null,null,null,null,null,null,null,null,"Q72","TAD","BRADFORD DISTRICT CARE NHS FOUNDATION TRUST","Secondary Care Community Services",null,"RXM","SOUTH LONDON AND MAUDSLEY NHS FOUNDATION TRUST","RXM","DERBYSHIRE HEALTHCARE NHS FOUNDATION TRUST"]
[null,null,null,null,null,null,null,null,null,null,null,null,null,null,null,null,"Q72","RV9","HUMBER NHS FOUNDATION TRUST","Acute Services",null,"RXT","SOUTH STAFFORDSHIRE AND SHROPSHIRE HEALTHCARE NHS FOUNDATION TRUST","RXT","BIRMINGHAM AND SOLIHULL MENTAL HEALTH NHS FOUNDATION TRUST"]
[null,null,null,null,null,null,null,null,null,null,null,null,null,null,null,null,"Q72","RV9","HUMBER NHS FOUNDATION TRUST","Child & Adolescent Mental Health Services",null,"RXV","SOUTH TYNESIDE NHS FOUNDATION TRUST","RXV","GREATER MANCHESTER WEST MENTAL HEALTH NHS FOUNDATION TRUST"]
[null,null,null,null,null,null,null,null,null,null,null,null,null,null,null,null,"Q72","RV9","HUMBER NHS FOUNDATION TRUST","Mental Health Other",null,"RXX","SOUTH WEST LONDON AND ST GEORGE'S MENTAL HEALTH NHS TRUST","RXX","SURREY AND BORDERS PARTNERSHIP NHS FOUNDATION TRUST"]
[null,null,null,null,null,null,null,null,null,null,null,null,null,null,null,null,"Q72","RV9","HUMBER NHS FOUNDATION TRUST","Primary Care",null,"RXY","SOUTH WEST YORKSHIRE PARTNERSHIP NHS FOUNDATION TRUST","RXY","KENT AND MEDWAY NHS AND SOCIAL CARE PARTNERSHIP TRUST"]
[null,null,null,null,null,null,null,null,null,null,null,null,null,null,null,null,"Q72","RV9","HUMBER NHS FOUNDATION TRUST","Secondary Care Community Services",null,"RY4","SOUTHERN HEALTH NHS FOUNDATION TRUST","RY4","HERTFORDSHIRE COMMUNITY NHS TRUST"]
[null,null,null,null,null,null,null,null,null,null,null,null,null,null,null,null,"Q72","RV9","HUMBER NHS FOUNDATION TRUST","Specialist Services",null,"RY6","SURREY AND BORDERS PARTNERSHIP NHS FOUNDATION TRUST","RY6","LEEDS COMMUNITY HEALTHCARE NHS TRUST"]
[null,null,null,null,null,null,null,null,null,null,null,null,null,null,null,null,"Q72","RGD","LEEDS AND YORK PARTNERSHIP NHS FOUNDATION TRUST","Acute Services",null,"RYG","SUSSEX PARTNERSHIP NHS FOUNDATION TRUST","RYG","COVENTRY AND WARWICKSHIRE PARTNERSHIP NHS TRUST"]
[null,null,null,null,null,null,null,null,null,null,null,null,null,null,null,null,"Q72","RGD","LEEDS AND YORK PARTNERSHIP NHS FOUNDATION TRUST","Secondary Care Community Services",null,"RYK","TAVISTOCK AND PORTMAN NHS FOUNDATION TRUST","RYK","DUDLEY AND WALSALL MENTAL HEALTH PARTNERSHIP NHS TRUST"]
[null,null,null,null,null,null,null,null,null,null,null,null,null,null,null,null,"Q72","RGD","LEEDS AND YORK PARTNERSHIP NHS FOUNDATION TRUST","Secure & Forensic Services",null,"TAD","TEES, ESK AND WEAR VALLEYS NHS FOUNDATION TRUST","TAD","BRADFORD DISTRICT CARE NHS FOUNDATION TRUST"]
[null,null,null,null,null,null,null,null,null,null,null,null,null,null,null,null,"Q72","RGD","LEEDS AND YORK PARTNERSHIP NHS FOUNDATION TRUST","Specialist Services",null,"TAE","UNIVERSITY COLLEGE LONDON HOSPITALS NHS FOUNDATION TRUST","TAE","MANCHESTER MENTAL HEALTH AND SOCIAL CARE TRUST"]
[null,null,null,null,null,null,null,null,null,null,null,null,null,null,null,null,"Q72","RY6","LEEDS COMMUNITY HEALTHCARE NHS TRUST","Primary Care",null,"TAF","WEST LONDON MENTAL HEALTH NHS TRUST","TAF","CAMDEN AND ISLINGTON NHS FOUNDATION TRUST"]
[null,null,null,null,null,null,null,null,null,null,null,null,null,null,null,null,"Q72","RXE","ROTHERHAM DONCASTER AND SOUTH HUMBER NHS FOUNDATION TRUST","Acute Services",null,"TAH","WORCESTERSHIRE HEALTH AND CARE NHS TRUST","TAH","SHEFFIELD HEALTH & SOCIAL CARE NHS FOUNDATION TRUST"]
[null,null,null,null,null,null,null,null,null,null,null,null,null,null,null,null,"Q72","RXE","ROTHERHAM DONCASTER AND SOUTH HUMBER NHS FOUNDATION TRUST","Child & Adolescent Mental Health Services",null,"TAJ","YARBOROUGH CLEE CARE LIMITED","TAJ","BLACK COUNTRY PARTNERSHIP NHS FOUNDATION TRUST"]
[null,null,null,null,null,null,null,null,null,null,null,null,null,null,null,null,"Q72","RXE","ROTHERHAM DONCASTER AND SOUTH HUMBER NHS FOUNDATION TRUST","Primary Care"]
[null,null,null,null,null,null,null,null,null,null,null,null,null,null,null,null,"Q72","RXE","ROTHERHAM DONCASTER AND SOUTH HUMBER NHS FOUNDATION TRUST","Secondary Care Community Services"]
[null,null,null,null,null,null,null,null,null,null,null,null,null,null,null,null,"Q72","RXE","ROTHERHAM DONCASTER AND SOUTH HUMBER NHS FOUNDATION TRUST","Specialist Services"]
[null,null,null,null,null,null,null,null,null,null,null,null,null,null,null,null,"Q72","RCU","SHEFFIELD CHILDREN'S NHS FOUNDATION TRUST","Acute Services"]
[null,null,null,null,null,null,null,null,null,null,null,null,null,null,null,null,"Q72","RCU","SHEFFIELD CHILDREN'S NHS FOUNDATION TRUST","Child & Adolescent Mental Health Services"]
[null,null,null,null,null,null,null,null,null,null,null,null,null,null,null,null,"Q72","TAH","SHEFFIELD HEALTH & SOCIAL CARE NHS FOUNDATION TRUST","Acute Services"]
[null,null,null,null,null,null,null,null,null,null,null,null,null,null,null,null,"Q72","TAH","SHEFFIELD HEALTH & SOCIAL CARE NHS FOUNDATION TRUST","Mental Health Other"]
[null,null,null,null,null,null,null,null,null,null,null,null,null,null,null,null,"Q72","TAH","SHEFFIELD HEALTH & SOCIAL CARE NHS FOUNDATION TRUST","Primary Care"]
[null,null,null,null,null,null,null,null,null,null,null,null,null,null,null,null,"Q72","TAH","SHEFFIELD HEALTH & SOCIAL CARE NHS FOUNDATION TRUST","Secondary Care Community Services"]
[null,null,null,null,null,null,null,null,null,null,null,null,null,null,null,null,"Q72","TAH","SHEFFIELD HEALTH & SOCIAL CARE NHS FOUNDATION TRUST","Specialist Services"]
[null,null,null,null,null,null,null,null,null,null,null,null,null,null,null,null,"Q72","RXG","SOUTH WEST YORKSHIRE PARTNERSHIP NHS FOUNDATION TRUST","Acute Services"]
[null,null,null,null,null,null,null,null,null,null,null,null,null,null,null,null,"Q72","RXG","SOUTH WEST YORKSHIRE PARTNERSHIP NHS FOUNDATION TRUST","Child & Adolescent Mental Health Services"]
[null,null,null,null,null,null,null,null,null,null,null,null,null,null,null,null,"Q72","RXG","SOUTH WEST YORKSHIRE PARTNERSHIP NHS FOUNDATION TRUST","Mental Health Other"]
[null,null,null,null,null,null,null,null,null,null,null,null,null,null,null,null,"Q72","RXG","SOUTH WEST YORKSHIRE PARTNERSHIP NHS FOUNDATION TRUST","Primary Care"]
[null,null,null,null,null,null,null,null,null,null,null,null,null,null,null,null,"Q72","RXG","SOUTH WEST YORKSHIRE PARTNERSHIP NHS FOUNDATION TRUST","Secondary Care Community Services"]
[null,null,null,null,null,null,null,null,null,null,null,null,null,null,null,null,"Q72","RXG","SOUTH WEST YORKSHIRE PARTNERSHIP NHS FOUNDATION TRUST","Specialist Services"]
[null,null,null,null,null,null,null,null,null,null,null,null,null,null,null,null,"Q73","RXL","BLACKPOOL TEACHING HOSPITALS NHS FOUNDATION TRUST","Child & Adolescent Mental Health Services"]
[null,null,null,null,null,null,null,null,null,null,null,null,null,null,null,null,"Q73","RXL","BLACKPOOL TEACHING HOSPITALS NHS FOUNDATION TRUST","Primary Care"]
[null,null,null,null,null,null,null,null,null,null,null,null,null,null,null,null,"Q73","RXV","GREATER MANCHESTER WEST MENTAL HEALTH NHS FOUNDATION TRUST","Acute Services"]
[null,null,null,null,null,null,null,null,null,null,null,null,null,null,null,null,"Q73","RXV","GREATER MANCHESTER WEST MENTAL HEALTH NHS FOUNDATION TRUST","Child & Adolescent Mental Health Services"]
[null,null,null,null,null,null,null,null,null,null,null,null,null,null,null,null,"Q73","RXV","GREATER MANCHESTER WEST MENTAL HEALTH NHS FOUNDATION TRUST","Primary Care"]
[null,null,null,null,null,null,null,null,null,null,null,null,null,null,null,null,"Q73","RXV","GREATER MANCHESTER WEST MENTAL HEALTH NHS FOUNDATION TRUST","Secondary Care Community Services"]
[null,null,null,null,null,null,null,null,null,null,null,null,null,null,null,null,"Q73","RXV","GREATER MANCHESTER WEST MENTAL HEALTH NHS FOUNDATION TRUST","Secure & Forensic Services"]
[null,null,null,null,null,null,null,null,null,null,null,null,null,null,null,null,"Q73","RXV","GREATER MANCHESTER WEST MENTAL HEALTH NHS FOUNDATION TRUST","Specialist Services"]
[null,null,null,null,null,null,null,null,null,null,null,null,null,null,null,null,"Q73","RW5","LANCASHIRE CARE NHS FOUNDATION TRUST","Acute Services"]
[null,null,null,null,null,null,null,null,null,null,null,null,null,null,null,null,"Q73","RW5","LANCASHIRE CARE NHS FOUNDATION TRUST","Child & Adolescent Mental Health Services"]
[null,null,null,null,null,null,null,null,null,null,null,null,null,null,null,null,"Q73","RW5","LANCASHIRE CARE NHS FOUNDATION TRUST","Mental Health Other"]
[null,null,null,null,null,null,null,null,null,null,null,null,null,null,null,null,"Q73","RW5","LANCASHIRE CARE NHS FOUNDATION TRUST","Primary Care"]
[null,null,null,null,null,null,null,null,null,null,null,null,null,null,null,null,"Q73","RW5","LANCASHIRE CARE NHS FOUNDATION TRUST","Secondary Care Community Services"]
[null,null,null,null,null,null,null,null,null,null,null,null,null,null,null,null,"Q73","RW5","LANCASHIRE CARE NHS FOUNDATION TRUST","Secure & Forensic Services"]
[null,null,null,null,null,null,null,null,null,null,null,null,null,null,null,null,"Q73","RW5","LANCASHIRE CARE NHS FOUNDATION TRUST","Specialist Services"]
[null,null,null,null,null,null,null,null,null,null,null,null,null,null,null,null,"Q73","TAE","MANCHESTER MENTAL HEALTH AND SOCIAL CARE TRUST","Acute Services"]
[null,null,null,null,null,null,null,null,null,null,null,null,null,null,null,null,"Q73","TAE","MANCHESTER MENTAL HEALTH AND SOCIAL CARE TRUST","Mental Health Other"]
[null,null,null,null,null,null,null,null,null,null,null,null,null,null,null,null,"Q73","TAE","MANCHESTER MENTAL HEALTH AND SOCIAL CARE TRUST","Primary Care"]
[null,null,null,null,null,null,null,null,null,null,null,null,null,null,null,null,"Q73","TAE","MANCHESTER MENTAL HEALTH AND SOCIAL CARE TRUST","Secondary Care Community Services"]
[null,null,null,null,null,null,null,null,null,null,null,null,null,null,null,null,"Q73","TAE","MANCHESTER MENTAL HEALTH AND SOCIAL CARE TRUST","Specialist Services"]
[null,null,null,null,null,null,null,null,null,null,null,null,null,null,null,null,"Q73","RT2","PENNINE CARE NHS FOUNDATION TRUST","Acute Services"]
[null,null,null,null,null,null,null,null,null,null,null,null,null,null,null,null,"Q73","RT2","PENNINE CARE NHS FOUNDATION TRUST","Child & Adolescent Mental Health Services"]
[null,null,null,null,null,null,null,null,null,null,null,null,null,null,null,null,"Q73","RT2","PENNINE CARE NHS FOUNDATION TRUST","Mental Health Other"]
[null,null,null,null,null,null,null,null,null,null,null,null,null,null,null,null,"Q73","RT2","PENNINE CARE NHS FOUNDATION TRUST","Secondary Care Community Services"]
[null,null,null,null,null,null,null,null,null,null,null,null,null,null,null,null,"Q73","RT2","PENNINE CARE NHS FOUNDATION TRUST","Specialist Services"]
[null,null,null,null,null,null,null,null,null,null,null,null,null,null,null,null,"Q74","RNN","CUMBRIA PARTNERSHIP NHS FOUNDATION TRUST","Acute Services"]
[null,null,null,null,null,null,null,null,null,null,null,null,null,null,null,null,"Q74","RNN","CUMBRIA PARTNERSHIP NHS FOUNDATION TRUST","Child & Adolescent Mental Health Services"]
[null,null,null,null,null,null,null,null,null,null,null,null,null,null,null,null,"Q74","RNN","CUMBRIA PARTNERSHIP NHS FOUNDATION TRUST","Primary Care"]
[null,null,null,null,null,null,null,null,null,null,null,null,null,null,null,null,"Q74","RNN","CUMBRIA PARTNERSHIP NHS FOUNDATION TRUST","Secondary Care Community Services"]
[null,null,null,null,null,null,null,null,null,null,null,null,null,null,null,null,"Q74","RR7","GATESHEAD HEALTH NHS FOUNDATION TRUST","Secondary Care Community Services"]
[null,null,null,null,null,null,null,null,null,null,null,null,null,null,null,null,"Q74","RR7","GATESHEAD HEALTH NHS FOUNDATION TRUST","Specialist Services"]
[null,null,null,null,null,null,null,null,null,null,null,null,null,null,null,null,"Q74","RX4","NORTHUMBERLAND, TYNE AND WEAR NHS FOUNDATION TRUST","Acute Services"]
[null,null,null,null,null,null,null,null,null,null,null,null,null,null,null,null,"Q74","RX4","NORTHUMBERLAND, TYNE AND WEAR NHS FOUNDATION TRUST","Mental Health Other"]
[null,null,null,null,null,null,null,null,null,null,null,null,null,null,null,null,"Q74","RX4","NORTHUMBERLAND, TYNE AND WEAR NHS FOUNDATION TRUST","Secondary Care Community Services"]
[null,null,null,null,null,null,null,null,null,null,null,null,null,null,null,null,"Q74","RX4","NORTHUMBERLAND, TYNE AND WEAR NHS FOUNDATION TRUST","Secure & Forensic Services"]
[null,null,null,null,null,null,null,null,null,null,null,null,null,null,null,null,"Q74","RX4","NORTHUMBERLAND, TYNE AND WEAR NHS FOUNDATION TRUST","Specialist Services"]
[null,null,null,null,null,null,null,null,null,null,null,null,null,null,null,null,"Q74","RTF","NORTHUMBRIA HEALTHCARE NHS FOUNDATION TRUST","Primary Care"]
[null,null,null,null,null,null,null,null,null,null,null,null,null,null,null,null,"Q74","RTF","NORTHUMBRIA HEALTHCARE NHS FOUNDATION TRUST","Secondary Care Community Services"]
[null,null,null,null,null,null,null,null,null,null,null,null,null,null,null,null,"Q74","RE9","SOUTH TYNESIDE NHS FOUNDATION TRUST","Child & Adolescent Mental Health Services"]
[null,null,null,null,null,null,null,null,null,null,null,null,null,null,null,null,"Q74","RE9","SOUTH TYNESIDE NHS FOUNDATION TRUST","Primary Care"]
[null,null,null,null,null,null,null,null,null,null,null,null,null,null,null,null,"Q74","RX3","TEES, ESK AND WEAR VALLEYS NHS FOUNDATION TRUST","Acute Services"]
[null,null,null,null,null,null,null,null,null,null,null,null,null,null,null,null,"Q74","RX3","TEES, ESK AND WEAR VALLEYS NHS FOUNDATION TRUST","Child & Adolescent Mental Health Services"]
[null,null,null,null,null,null,null,null,null,null,null,null,null,null,null,null,"Q74","RX3","TEES, ESK AND WEAR VALLEYS NHS FOUNDATION TRUST","Mental Health Other"]
[null,null,null,null,null,null,null,null,null,null,null,null,null,null,null,null,"Q74","RX3","TEES, ESK AND WEAR VALLEYS NHS FOUNDATION TRUST","Primary Care"]
[null,null,null,null,null,null,null,null,null,null,null,null,null,null,null,null,"Q74","RX3","TEES, ESK AND WEAR VALLEYS NHS FOUNDATION TRUST","Secondary Care Community Services"]
[null,null,null,null,null,null,null,null,null,null,null,null,null,null,null,null,"Q74","RX3","TEES, ESK AND WEAR VALLEYS NHS FOUNDATION TRUST","Secure & Forensic Services"]
[null,null,null,null,null,null,null,null,null,null,null,null,null,null,null,null,"Q74","RX3","TEES, ESK AND WEAR VALLEYS NHS FOUNDATION TRUST","Specialist Services"]
[null,null,null,null,null,null,null,null,null,null,null,null,null,null,null,null,"Q75","RTV","5 BOROUGHS PARTNERSHIP NHS FOUNDATION TRUST","Acute Services"]
[null,null,null,null,null,null,null,null,null,null,null,null,null,null,null,null,"Q75","RTV","5 BOROUGHS PARTNERSHIP NHS FOUNDATION TRUST","Child & Adolescent Mental Health Services"]
[null,null,null,null,null,null,null,null,null,null,null,null,null,null,null,null,"Q75","RTV","5 BOROUGHS PARTNERSHIP NHS FOUNDATION TRUST","Primary Care"]
[null,null,null,null,null,null,null,null,null,null,null,null,null,null,null,null,"Q75","RTV","5 BOROUGHS PARTNERSHIP NHS FOUNDATION TRUST","Secondary Care Community Services"]
[null,null,null,null,null,null,null,null,null,null,null,null,null,null,null,null,"Q75","RTV","5 BOROUGHS PARTNERSHIP NHS FOUNDATION TRUST","Specialist Services"]
[null,null,null,null,null,null,null,null,null,null,null,null,null,null,null,null,"Q75","RBS","ALDER HEY CHILDREN'S NHS FOUNDATION TRUST","Child & Adolescent Mental Health Services"]
[null,null,null,null,null,null,null,null,null,null,null,null,null,null,null,null,"Q75","RXA","CHESHIRE AND WIRRAL PARTNERSHIP NHS FOUNDATION TRUST","Acute Services"]
[null,null,null,null,null,null,null,null,null,null,null,null,null,null,null,null,"Q75","RXA","CHESHIRE AND WIRRAL PARTNERSHIP NHS FOUNDATION TRUST","Child & Adolescent Mental Health Services"]
[null,null,null,null,null,null,null,null,null,null,null,null,null,null,null,null,"Q75","RXA","CHESHIRE AND WIRRAL PARTNERSHIP NHS FOUNDATION TRUST","Primary Care"]
[null,null,null,null,null,null,null,null,null,null,null,null,null,null,null,null,"Q75","RXA","CHESHIRE AND WIRRAL PARTNERSHIP NHS FOUNDATION TRUST","Secondary Care Community Services"]
[null,null,null,null,null,null,null,null,null,null,null,null,null,null,null,null,"Q75","RXA","CHESHIRE AND WIRRAL PARTNERSHIP NHS FOUNDATION TRUST","Specialist Services"]
[null,null,null,null,null,null,null,null,null,null,null,null,null,null,null,null,"Q75","RW4","MERSEY CARE NHS TRUST","Acute Services"]
[null,null,null,null,null,null,null,null,null,null,null,null,null,null,null,null,"Q75","RW4","MERSEY CARE NHS TRUST","Secondary Care Community Services"]
[null,null,null,null,null,null,null,null,null,null,null,null,null,null,null,null,"Q75","RW4","MERSEY CARE NHS TRUST","Secure & Forensic Services"]
[null,null,null,null,null,null,null,null,null,null,null,null,null,null,null,null,"Q76","RXM","DERBYSHIRE HEALTHCARE NHS FOUNDATION TRUST","Acute Services"]
[null,null,null,null,null,null,null,null,null,null,null,null,null,null,null,null,"Q76","RXM","DERBYSHIRE HEALTHCARE NHS FOUNDATION TRUST","Secondary Care Community Services"]
[null,null,null,null,null,null,null,null,null,null,null,null,null,null,null,null,"Q76","RLY","NORTH STAFFORDSHIRE COMBINED HEALTHCARE NHS TRUST","Acute Services"]
[null,null,null,null,null,null,null,null,null,null,null,null,null,null,null,null,"Q76","RLY","NORTH STAFFORDSHIRE COMBINED HEALTHCARE NHS TRUST","Secondary Care Community Services"]
[null,null,null,null,null,null,null,null,null,null,null,null,null,null,null,null,"Q76","RHA","NOTTINGHAMSHIRE HEALTHCARE NHS FOUNDATION TRUST","Acute Services"]
[null,null,null,null,null,null,null,null,null,null,null,null,null,null,null,null,"Q76","RHA","NOTTINGHAMSHIRE HEALTHCARE NHS FOUNDATION TRUST","Child & Adolescent Mental Health Services"]
[null,null,null,null,null,null,null,null,null,null,null,null,null,null,null,null,"Q76","RHA","NOTTINGHAMSHIRE HEALTHCARE NHS FOUNDATION TRUST","Primary Care"]
[null,null,null,null,null,null,null,null,null,null,null,null,null,null,null,null,"Q76","RHA","NOTTINGHAMSHIRE HEALTHCARE NHS FOUNDATION TRUST","Secondary Care Community Services"]
[null,null,null,null,null,null,null,null,null,null,null,null,null,null,null,null,"Q76","RHA","NOTTINGHAMSHIRE HEALTHCARE NHS FOUNDATION TRUST","Secure & Forensic Services"]
[null,null,null,null,null,null,null,null,null,null,null,null,null,null,null,null,"Q76","RHA","NOTTINGHAMSHIRE HEALTHCARE NHS FOUNDATION TRUST","Specialist Services"]
[null,null,null,null,null,null,null,null,null,null,null,null,null,null,null,null,"Q76","R1D","SHROPSHIRE COMMUNITY HEALTH NHS TRUST","Child & Adolescent Mental Health Services"]
[null,null,null,null,null,null,null,null,null,null,null,null,null,null,null,null,"Q76","R1D","SHROPSHIRE COMMUNITY HEALTH NHS TRUST","Specialist Services"]
[null,null,null,null,null,null,null,null,null,null,null,null,null,null,null,null,"Q76","RRE","SOUTH STAFFORDSHIRE AND SHROPSHIRE HEALTHCARE NHS FOUNDATION TRUST","Acute Services"]
[null,null,null,null,null,null,null,null,null,null,null,null,null,null,null,null,"Q76","RRE","SOUTH STAFFORDSHIRE AND SHROPSHIRE HEALTHCARE NHS FOUNDATION TRUST","Child & Adolescent Mental Health Services"]
[null,null,null,null,null,null,null,null,null,null,null,null,null,null,null,null,"Q76","RRE","SOUTH STAFFORDSHIRE AND SHROPSHIRE HEALTHCARE NHS FOUNDATION TRUST","Mental Health Other"]
[null,null,null,null,null,null,null,null,null,null,null,null,null,null,null,null,"Q76","RRE","SOUTH STAFFORDSHIRE AND SHROPSHIRE HEALTHCARE NHS FOUNDATION TRUST","Primary Care"]
[null,null,null,null,null,null,null,null,null,null,null,null,null,null,null,null,"Q76","RRE","SOUTH STAFFORDSHIRE AND SHROPSHIRE HEALTHCARE NHS FOUNDATION TRUST","Secondary Care Community Services"]
[null,null,null,null,null,null,null,null,null,null,null,null,null,null,null,null,"Q76","RRE","SOUTH STAFFORDSHIRE AND SHROPSHIRE HEALTHCARE NHS FOUNDATION TRUST","Specialist Services"]
[null,null,null,null,null,null,null,null,null,null,null,null,null,null,null,null,"Q77","RXT","BIRMINGHAM AND SOLIHULL MENTAL HEALTH NHS FOUNDATION TRUST","Acute Services"]
[null,null,null,null,null,null,null,null,null,null,null,null,null,null,null,null,"Q77","RXT","BIRMINGHAM AND SOLIHULL MENTAL HEALTH NHS FOUNDATION TRUST","Child & Adolescent Mental Health Services"]
[null,null,null,null,null,null,null,null,null,null,null,null,null,null,null,null,"Q77","RXT","BIRMINGHAM AND SOLIHULL MENTAL HEALTH NHS FOUNDATION TRUST","Mental Health Other"]
[null,null,null,null,null,null,null,null,null,null,null,null,null,null,null,null,"Q77","RXT","BIRMINGHAM AND SOLIHULL MENTAL HEALTH NHS FOUNDATION TRUST","Primary Care"]
[null,null,null,null,null,null,null,null,null,null,null,null,null,null,null,null,"Q77","RXT","BIRMINGHAM AND SOLIHULL MENTAL HEALTH NHS FOUNDATION TRUST","Secondary Care Community Services"]
[null,null,null,null,null,null,null,null,null,null,null,null,null,null,null,null,"Q77","RXT","BIRMINGHAM AND SOLIHULL MENTAL HEALTH NHS FOUNDATION TRUST","Secure & Forensic Services"]
[null,null,null,null,null,null,null,null,null,null,null,null,null,null,null,null,"Q77","RXT","BIRMINGHAM AND SOLIHULL MENTAL HEALTH NHS FOUNDATION TRUST","Specialist Services"]
[null,null,null,null,null,null,null,null,null,null,null,null,null,null,null,null,"Q77","RQ3","BIRMINGHAM CHILDREN'S HOSPITAL NHS FOUNDATION TRUST","Child & Adolescent Mental Health Services"]
[null,null,null,null,null,null,null,null,null,null,null,null,null,null,null,null,"Q77","TAJ","BLACK COUNTRY PARTNERSHIP NHS FOUNDATION TRUST","Mental Health Other"]
[null,null,null,null,null,null,null,null,null,null,null,null,null,null,null,null,"Q77","RYG","COVENTRY AND WARWICKSHIRE PARTNERSHIP NHS TRUST","Acute Services"]
[null,null,null,null,null,null,null,null,null,null,null,null,null,null,null,null,"Q77","RYG","COVENTRY AND WARWICKSHIRE PARTNERSHIP NHS TRUST","Child & Adolescent Mental Health Services"]
[null,null,null,null,null,null,null,null,null,null,null,null,null,null,null,null,"Q77","RYG","COVENTRY AND WARWICKSHIRE PARTNERSHIP NHS TRUST","Mental Health Other"]
[null,null,null,null,null,null,null,null,null,null,null,null,null,null,null,null,"Q77","RYG","COVENTRY AND WARWICKSHIRE PARTNERSHIP NHS TRUST","Secondary Care Community Services"]
[null,null,null,null,null,null,null,null,null,null,null,null,null,null,null,null,"Q77","RYK","DUDLEY AND WALSALL MENTAL HEALTH PARTNERSHIP NHS TRUST","Secondary Care Community Services"]
[null,null,null,null,null,null,null,null,null,null,null,null,null,null,null,null,"Q77","R1A","WORCESTERSHIRE HEALTH AND CARE NHS TRUST","Secondary Care Community Services"]
[null,null,null,null,null,null,null,null,null,null,null,null,null,null,null,null,"Q78","RY4","HERTFORDSHIRE COMMUNITY NHS TRUST","Mental Health Other"]
[null,null,null,null,null,null,null,null,null,null,null,null,null,null,null,null,"Q78","RWR","HERTFORDSHIRE PARTNERSHIP UNIVERSITY NHS FOUNDATION TRUST","Acute Services"]
[null,null,null,null,null,null,null,null,null,null,null,null,null,null,null,null,"Q78","RWR","HERTFORDSHIRE PARTNERSHIP UNIVERSITY NHS FOUNDATION TRUST","Child & Adolescent Mental Health Services"]
[null,null,null,null,null,null,null,null,null,null,null,null,null,null,null,null,"Q78","RWR","HERTFORDSHIRE PARTNERSHIP UNIVERSITY NHS FOUNDATION TRUST","Primary Care"]
[null,null,null,null,null,null,null,null,null,null,null,null,null,null,null,null,"Q78","RWR","HERTFORDSHIRE PARTNERSHIP UNIVERSITY NHS FOUNDATION TRUST","Secondary Care Community Services"]
[null,null,null,null,null,null,null,null,null,null,null,null,null,null,null,null,"Q78","RWR","HERTFORDSHIRE PARTNERSHIP UNIVERSITY NHS FOUNDATION TRUST","Secure & Forensic Services"]
[null,null,null,null,null,null,null,null,null,null,null,null,null,null,null,null,"Q78","RWR","HERTFORDSHIRE PARTNERSHIP UNIVERSITY NHS FOUNDATION TRUST","Specialist Services"]
[null,null,null,null,null,null,null,null,null,null,null,null,null,null,null,null,"Q78","RT5","LEICESTERSHIRE PARTNERSHIP NHS TRUST","Acute Services"]
[null,null,null,null,null,null,null,null,null,null,null,null,null,null,null,null,"Q78","RT5","LEICESTERSHIRE PARTNERSHIP NHS TRUST","Child & Adolescent Mental Health Services"]
[null,null,null,null,null,null,null,null,null,null,null,null,null,null,null,null,"Q78","RT5","LEICESTERSHIRE PARTNERSHIP NHS TRUST","Mental Health Other"]
[null,null,null,null,null,null,null,null,null,null,null,null,null,null,null,null,"Q78","RT5","LEICESTERSHIRE PARTNERSHIP NHS TRUST","Secondary Care Community Services"]
[null,null,null,null,null,null,null,null,null,null,null,null,null,null,null,null,"Q78","RT5","LEICESTERSHIRE PARTNERSHIP NHS TRUST","Specialist Services"]
[null,null,null,null,null,null,null,null,null,null,null,null,null,null,null,null,"Q78","RP7","LINCOLNSHIRE PARTNERSHIP NHS FOUNDATION TRUST","Acute Services"]
[null,null,null,null,null,null,null,null,null,null,null,null,null,null,null,null,"Q78","RP7","LINCOLNSHIRE PARTNERSHIP NHS FOUNDATION TRUST","Child & Adolescent Mental Health Services"]
[null,null,null,null,null,null,null,null,null,null,null,null,null,null,null,null,"Q78","RP7","LINCOLNSHIRE PARTNERSHIP NHS FOUNDATION TRUST","Mental Health Other"]
[null,null,null,null,null,null,null,null,null,null,null,null,null,null,null,null,"Q78","RP7","LINCOLNSHIRE PARTNERSHIP NHS FOUNDATION TRUST","Primary Care"]
[null,null,null,null,null,null,null,null,null,null,null,null,null,null,null,null,"Q78","RP7","LINCOLNSHIRE PARTNERSHIP NHS FOUNDATION TRUST","Secondary Care Community Services"]
[null,null,null,null,null,null,null,null,null,null,null,null,null,null,null,null,"Q78","RP7","LINCOLNSHIRE PARTNERSHIP NHS FOUNDATION TRUST","Specialist Services"]
[null,null,null,null,null,null,null,null,null,null,null,null,null,null,null,null,"Q78","RP1","NORTHAMPTONSHIRE HEALTHCARE NHS FOUNDATION TRUST","Acute Services"]
[null,null,null,null,null,null,null,null,null,null,null,null,null,null,null,null,"Q78","RP1","NORTHAMPTONSHIRE HEALTHCARE NHS FOUNDATION TRUST","Child & Adolescent Mental Health Services"]
[null,null,null,null,null,null,null,null,null,null,null,null,null,null,null,null,"Q78","RP1","NORTHAMPTONSHIRE HEALTHCARE NHS FOUNDATION TRUST","Mental Health Other"]
[null,null,null,null,null,null,null,null,null,null,null,null,null,null,null,null,"Q78","RP1","NORTHAMPTONSHIRE HEALTHCARE NHS FOUNDATION TRUST","Primary Care"]
[null,null,null,null,null,null,null,null,null,null,null,null,null,null,null,null,"Q78","RP1","NORTHAMPTONSHIRE HEALTHCARE NHS FOUNDATION TRUST","Secondary Care Community Services"]
[null,null,null,null,null,null,null,null,null,null,null,null,null,null,null,null,"Q78","RP1","NORTHAMPTONSHIRE HEALTHCARE NHS FOUNDATION TRUST","Secure & Forensic Services"]
[null,null,null,null,null,null,null,null,null,null,null,null,null,null,null,null,"Q78","RP1","NORTHAMPTONSHIRE HEALTHCARE NHS FOUNDATION TRUST","Specialist Services"]
[null,null,null,null,null,null,null,null,null,null,null,null,null,null,null,null,"Q79","RT1","CAMBRIDGESHIRE AND PETERBOROUGH NHS FOUNDATION TRUST","Acute Services"]
[null,null,null,null,null,null,null,null,null,null,null,null,null,null,null,null,"Q79","RT1","CAMBRIDGESHIRE AND PETERBOROUGH NHS FOUNDATION TRUST","Child & Adolescent Mental Health Services"]
[null,null,null,null,null,null,null,null,null,null,null,null,null,null,null,null,"Q79","RT1","CAMBRIDGESHIRE AND PETERBOROUGH NHS FOUNDATION TRUST","Mental Health Other"]
[null,null,null,null,null,null,null,null,null,null,null,null,null,null,null,null,"Q79","RT1","CAMBRIDGESHIRE AND PETERBOROUGH NHS FOUNDATION TRUST","Primary Care"]
[null,null,null,null,null,null,null,null,null,null,null,null,null,null,null,null,"Q79","RT1","CAMBRIDGESHIRE AND PETERBOROUGH NHS FOUNDATION TRUST","Secondary Care Community Services"]
[null,null,null,null,null,null,null,null,null,null,null,null,null,null,null,null,"Q79","RT1","CAMBRIDGESHIRE AND PETERBOROUGH NHS FOUNDATION TRUST","Secure & Forensic Services"]
[null,null,null,null,null,null,null,null,null,null,null,null,null,null,null,null,"Q79","RT1","CAMBRIDGESHIRE AND PETERBOROUGH NHS FOUNDATION TRUST","Specialist Services"]
[null,null,null,null,null,null,null,null,null,null,null,null,null,null,null,null,"Q79","RMY","NORFOLK AND SUFFOLK NHS FOUNDATION TRUST","Acute Services"]
[null,null,null,null,null,null,null,null,null,null,null,null,null,null,null,null,"Q79","RMY","NORFOLK AND SUFFOLK NHS FOUNDATION TRUST","Child & Adolescent Mental Health Services"]
[null,null,null,null,null,null,null,null,null,null,null,null,null,null,null,null,"Q79","RMY","NORFOLK AND SUFFOLK NHS FOUNDATION TRUST","Secondary Care Community Services"]
[null,null,null,null,null,null,null,null,null,null,null,null,null,null,null,null,"Q79","RRD","NORTH ESSEX PARTNERSHIP UNIVERSITY NHS FOUNDATION TRUST","Mental Health Other"]
[null,null,null,null,null,null,null,null,null,null,null,null,null,null,null,null,"Q79","RWN","SOUTH ESSEX PARTNERSHIP UNIVERSITY NHS FOUNDATION TRUST","Acute Services"]
[null,null,null,null,null,null,null,null,null,null,null,null,null,null,null,null,"Q79","RWN","SOUTH ESSEX PARTNERSHIP UNIVERSITY NHS FOUNDATION TRUST","Child & Adolescent Mental Health Services"]
[null,null,null,null,null,null,null,null,null,null,null,null,null,null,null,null,"Q79","RWN","SOUTH ESSEX PARTNERSHIP UNIVERSITY NHS FOUNDATION TRUST","Primary Care"]
[null,null,null,null,null,null,null,null,null,null,null,null,null,null,null,null,"Q79","RWN","SOUTH ESSEX PARTNERSHIP UNIVERSITY NHS FOUNDATION TRUST","Secondary Care Community Services"]
[null,null,null,null,null,null,null,null,null,null,null,null,null,null,null,null,"Q79","RWN","SOUTH ESSEX PARTNERSHIP UNIVERSITY NHS FOUNDATION TRUST","Specialist Services"]
[null,null,null,null,null,null,null,null,null,null,null,null,null,null,null,null,"Q80","RJ8","CORNWALL PARTNERSHIP NHS FOUNDATION TRUST","Acute Services"]
[null,null,null,null,null,null,null,null,null,null,null,null,null,null,null,null,"Q80","RJ8","CORNWALL PARTNERSHIP NHS FOUNDATION TRUST","Child & Adolescent Mental Health Services"]
[null,null,null,null,null,null,null,null,null,null,null,null,null,null,null,null,"Q80","RJ8","CORNWALL PARTNERSHIP NHS FOUNDATION TRUST","Secondary Care Community Services"]
[null,null,null,null,null,null,null,null,null,null,null,null,null,null,null,null,"Q80","RJ8","CORNWALL PARTNERSHIP NHS FOUNDATION TRUST","Specialist Services"]
[null,null,null,null,null,null,null,null,null,null,null,null,null,null,null,null,"Q80","RWV","DEVON PARTNERSHIP NHS TRUST","Acute Services"]
[null,null,null,null,null,null,null,null,null,null,null,null,null,null,null,null,"Q80","RWV","DEVON PARTNERSHIP NHS TRUST","Primary Care"]
[null,null,null,null,null,null,null,null,null,null,null,null,null,null,null,null,"Q80","RWV","DEVON PARTNERSHIP NHS TRUST","Secondary Care Community Services"]
[null,null,null,null,null,null,null,null,null,null,null,null,null,null,null,null,"Q80","RWV","DEVON PARTNERSHIP NHS TRUST","Secure & Forensic Services"]
[null,null,null,null,null,null,null,null,null,null,null,null,null,null,null,null,"Q80","RWV","DEVON PARTNERSHIP NHS TRUST","Specialist Services"]
[null,null,null,null,null,null,null,null,null,null,null,null,null,null,null,null,"Q80","RH5","SOMERSET PARTNERSHIP NHS FOUNDATION TRUST","Acute Services"]
[null,null,null,null,null,null,null,null,null,null,null,null,null,null,null,null,"Q80","RH5","SOMERSET PARTNERSHIP NHS FOUNDATION TRUST","Child & Adolescent Mental Health Services"]
[null,null,null,null,null,null,null,null,null,null,null,null,null,null,null,null,"Q80","RH5","SOMERSET PARTNERSHIP NHS FOUNDATION TRUST","Mental Health Other"]
[null,null,null,null,null,null,null,null,null,null,null,null,null,null,null,null,"Q80","RH5","SOMERSET PARTNERSHIP NHS FOUNDATION TRUST","Secure & Forensic Services"]
[null,null,null,null,null,null,null,null,null,null,null,null,null,null,null,null,"Q81","RXY","KENT AND MEDWAY NHS AND SOCIAL CARE PARTNERSHIP TRUST","Acute Services"]
[null,null,null,null,null,null,null,null,null,null,null,null,null,null,null,null,"Q81","RXY","KENT AND MEDWAY NHS AND SOCIAL CARE PARTNERSHIP TRUST","Mental Health Other"]
[null,null,null,null,null,null,null,null,null,null,null,null,null,null,null,null,"Q81","RXY","KENT AND MEDWAY NHS AND SOCIAL CARE PARTNERSHIP TRUST","Secondary Care Community Services"]
[null,null,null,null,null,null,null,null,null,null,null,null,null,null,null,null,"Q81","RXY","KENT AND MEDWAY NHS AND SOCIAL CARE PARTNERSHIP TRUST","Secure & Forensic Services"]
[null,null,null,null,null,null,null,null,null,null,null,null,null,null,null,null,"Q81","RXY","KENT AND MEDWAY NHS AND SOCIAL CARE PARTNERSHIP TRUST","Specialist Services"]
[null,null,null,null,null,null,null,null,null,null,null,null,null,null,null,null,"Q81","RXX","SURREY AND BORDERS PARTNERSHIP NHS FOUNDATION TRUST","Acute Services"]
[null,null,null,null,null,null,null,null,null,null,null,null,null,null,null,null,"Q81","RXX","SURREY AND BORDERS PARTNERSHIP NHS FOUNDATION TRUST","Child & Adolescent Mental Health Services"]
[null,null,null,null,null,null,null,null,null,null,null,null,null,null,null,null,"Q81","RXX","SURREY AND BORDERS PARTNERSHIP NHS FOUNDATION TRUST","Secondary Care Community Services"]
[null,null,null,null,null,null,null,null,null,null,null,null,null,null,null,null,"Q81","RXX","SURREY AND BORDERS PARTNERSHIP NHS FOUNDATION TRUST","Specialist Services"]
[null,null,null,null,null,null,null,null,null,null,null,null,null,null,null,null,"Q81","RX2","SUSSEX PARTNERSHIP NHS FOUNDATION TRUST","Acute Services"]
[null,null,null,null,null,null,null,null,null,null,null,null,null,null,null,null,"Q81","RX2","SUSSEX PARTNERSHIP NHS FOUNDATION TRUST","Child & Adolescent Mental Health Services"]
[null,null,null,null,null,null,null,null,null,null,null,null,null,null,null,null,"Q81","RX2","SUSSEX PARTNERSHIP NHS FOUNDATION TRUST","Primary Care"]
[null,null,null,null,null,null,null,null,null,null,null,null,null,null,null,null,"Q81","RX2","SUSSEX PARTNERSHIP NHS FOUNDATION TRUST","Secondary Care Community Services"]
[null,null,null,null,null,null,null,null,null,null,null,null,null,null,null,null,"Q81","RX2","SUSSEX PARTNERSHIP NHS FOUNDATION TRUST","Secure & Forensic Services"]
[null,null,null,null,null,null,null,null,null,null,null,null,null,null,null,null,"Q81","RX2","SUSSEX PARTNERSHIP NHS FOUNDATION TRUST","Specialist Services"]
[null,null,null,null,null,null,null,null,null,null,null,null,null,null,null,null,"Q82","RTQ","2GETHER NHS FOUNDATION TRUST","Acute Services"]
[null,null,null,null,null,null,null,null,null,null,null,null,null,null,null,null,"Q82","RTQ","2GETHER NHS FOUNDATION TRUST","Child & Adolescent Mental Health Services"]
[null,null,null,null,null,null,null,null,null,null,null,null,null,null,null,null,"Q82","RTQ","2GETHER NHS FOUNDATION TRUST","Mental Health Other"]
[null,null,null,null,null,null,null,null,null,null,null,null,null,null,null,null,"Q82","RTQ","2GETHER NHS FOUNDATION TRUST","Primary Care"]
[null,null,null,null,null,null,null,null,null,null,null,null,null,null,null,null,"Q82","RTQ","2GETHER NHS FOUNDATION TRUST","Secondary Care Community Services"]
[null,null,null,null,null,null,null,null,null,null,null,null,null,null,null,null,"Q82","RVN","AVON AND WILTSHIRE MENTAL HEALTH PARTNERSHIP NHS TRUST","Acute Services"]
[null,null,null,null,null,null,null,null,null,null,null,null,null,null,null,null,"Q82","RVN","AVON AND WILTSHIRE MENTAL HEALTH PARTNERSHIP NHS TRUST","Mental Health Other"]
[null,null,null,null,null,null,null,null,null,null,null,null,null,null,null,null,"Q82","RVN","AVON AND WILTSHIRE MENTAL HEALTH PARTNERSHIP NHS TRUST","Primary Care"]
[null,null,null,null,null,null,null,null,null,null,null,null,null,null,null,null,"Q82","RVN","AVON AND WILTSHIRE MENTAL HEALTH PARTNERSHIP NHS TRUST","Secondary Care Community Services"]
[null,null,null,null,null,null,null,null,null,null,null,null,null,null,null,null,"Q82","RVN","AVON AND WILTSHIRE MENTAL HEALTH PARTNERSHIP NHS TRUST","Secure & Forensic Services"]
[null,null,null,null,null,null,null,null,null,null,null,null,null,null,null,null,"Q82","RVN","AVON AND WILTSHIRE MENTAL HEALTH PARTNERSHIP NHS TRUST","Specialist Services"]
[null,null,null,null,null,null,null,null,null,null,null,null,null,null,null,null,"Q82","RWX","BERKSHIRE HEALTHCARE NHS FOUNDATION TRUST","Acute Services"]
[null,null,null,null,null,null,null,null,null,null,null,null,null,null,null,null,"Q82","RWX","BERKSHIRE HEALTHCARE NHS FOUNDATION TRUST","Child & Adolescent Mental Health Services"]
[null,null,null,null,null,null,null,null,null,null,null,null,null,null,null,null,"Q82","RWX","BERKSHIRE HEALTHCARE NHS FOUNDATION TRUST","Mental Health Other"]
[null,null,null,null,null,null,null,null,null,null,null,null,null,null,null,null,"Q82","RWX","BERKSHIRE HEALTHCARE NHS FOUNDATION TRUST","Primary Care"]
[null,null,null,null,null,null,null,null,null,null,null,null,null,null,null,null,"Q82","RWX","BERKSHIRE HEALTHCARE NHS FOUNDATION TRUST","Secondary Care Community Services"]
[null,null,null,null,null,null,null,null,null,null,null,null,null,null,null,null,"Q82","RWX","BERKSHIRE HEALTHCARE NHS FOUNDATION TRUST","Specialist Services"]
[null,null,null,null,null,null,null,null,null,null,null,null,null,null,null,null,"Q82","RNU","OXFORD HEALTH NHS FOUNDATION TRUST","Acute Services"]
[null,null,null,null,null,null,null,null,null,null,null,null,null,null,null,null,"Q82","RNU","OXFORD HEALTH NHS FOUNDATION TRUST","Child & Adolescent Mental Health Services"]
[null,null,null,null,null,null,null,null,null,null,null,null,null,null,null,null,"Q82","RNU","OXFORD HEALTH NHS FOUNDATION TRUST","Primary Care"]
[null,null,null,null,null,null,null,null,null,null,null,null,null,null,null,null,"Q82","RNU","OXFORD HEALTH NHS FOUNDATION TRUST","Secondary Care Community Services"]
[null,null,null,null,null,null,null,null,null,null,null,null,null,null,null,null,"Q82","RNU","OXFORD HEALTH NHS FOUNDATION TRUST","Specialist Services"]
[null,null,null,null,null,null,null,null,null,null,null,null,null,null,null,null,"IS1","NVR","ALPHA HOSPITALS","Child & Adolescent Mental Health Services"]
[null,null,null,null,null,null,null,null,null,null,null,null,null,null,null,null,"IS1","NVR","ALPHA HOSPITALS","Secure & Forensic Services"]
[null,null,null,null,null,null,null,null,null,null,null,null,null,null,null,null,"IS1","NWX","BRIGHTON & HOVE INTEGRATED CARE SERVICE","Primary Care"]
[null,null,null,null,null,null,null,null,null,null,null,null,null,null,null,null,"IS1","NNF","CITY HEALTH CARE PARTNERSHIP CIC","Primary Care"]
[null,null,null,null,null,null,null,null,null,null,null,null,null,null,null,null,"IS1","NNF","CITY HEALTH CARE PARTNERSHIP CIC","Specialist Services"]
[null,null,null,null,null,null,null,null,null,null,null,null,null,null,null,null,"IS1","NMJ","CYGNET HEALTH CARE LIMITED","Child & Adolescent Mental Health Services"]
[null,null,null,null,null,null,null,null,null,null,null,null,null,null,null,null,"IS1","NMJ","CYGNET HEALTH CARE LIMITED","Secure & Forensic Services"]
[null,null,null,null,null,null,null,null,null,null,null,null,null,null,null,null,"IS1","NMJ","CYGNET HEALTH CARE LIMITED","Specialist Services"]
[null,null,null,null,null,null,null,null,null,null,null,null,null,null,null,null,"IS1","NQL","NAVIGO","Mental Health Other"]
[null,null,null,null,null,null,null,null,null,null,null,null,null,null,null,null,"IS1","NR5","PLYMOUTH COMMUNITY HEALTHCARE (CIC)","Acute Services"]
[null,null,null,null,null,null,null,null,null,null,null,null,null,null,null,null,"IS1","NR5","PLYMOUTH COMMUNITY HEALTHCARE (CIC)","Child & Adolescent Mental Health Services"]
[null,null,null,null,null,null,null,null,null,null,null,null,null,null,null,null,"IS1","NR5","PLYMOUTH COMMUNITY HEALTHCARE (CIC)","Primary Care"]
[null,null,null,null,null,null,null,null,null,null,null,null,null,null,null,null,"IS1","NR5","PLYMOUTH COMMUNITY HEALTHCARE (CIC)","Secondary Care Community Services"]
[null,null,null,null,null,null,null,null,null,null,null,null,null,null,null,null,"IS1","NDK","YARBOROUGH CLEE CARE LIMITED","Secondary Care Community Services"]